Publisher Label,Publisher URI,"Supplier","Net Amount £","Organisational Unit","Merchant Category Code","Purpose","Payment Date"
"Wolverhampton City Council","http://opendatacommunities.org/id/metropolitan-district-council/wolverhampton","Amazon UK Marketplace","32.90","LAC Transitions Team","5942","Client Allowances","30/04/2018"
"Wolverhampton City Council","http://opendatacommunities.org/id/metropolitan-district-council/wolverhampton","Amazon EU","39.39","Upper Pendeford Farm Childrens Home","5969","Equipment - Purchase","30/04/2018"
"Wolverhampton City Council","http://opendatacommunities.org/id/metropolitan-district-council/wolverhampton","GO CARZ","13.10","LAC Team","4121","Client Transport","30/04/2018"
"Wolverhampton City Council","http://opendatacommunities.org/id/metropolitan-district-council/wolverhampton","E01510300000000","20.00","Emergency Duty Team","6011","Financial Assistance In Exceptional Circ","30/04/2018"
"Wolverhampton City Council","http://opendatacommunities.org/id/metropolitan-district-council/wolverhampton","Trainline","13.55","MASH","4112","Section 17","30/04/2018"
"Wolverhampton City Council","http://opendatacommunities.org/id/metropolitan-district-council/wolverhampton","WWW.JCTLTD.CO.UK","182.02","HRA General","5942","Services - Fees and Charges","30/04/2018"
"Wolverhampton City Council","http://opendatacommunities.org/id/metropolitan-district-council/wolverhampton","AH MEDIA LTD","1860.00","General Housing Administration","8999","Services - Professional Fees","30/04/2018"
"Wolverhampton City Council","http://opendatacommunities.org/id/metropolitan-district-council/wolverhampton","ALDI 94 772","21.37","Employment Programmes","5411","Provisions (Not for resale)","30/04/2018"
"Wolverhampton City Council","http://opendatacommunities.org/id/metropolitan-district-council/wolverhampton","WWW.ONEDIRECT.CO.UK","69.98","Blakenhall Commty & Healthy Living Ctr","4812","Comms - Mobile Telephones","30/04/2018"
"Wolverhampton City Council","http://opendatacommunities.org/id/metropolitan-district-council/wolverhampton","Amazon UK Marketplace","3.03","Global Budgets","5942","Stationery","30/04/2018"
"Wolverhampton City Council","http://opendatacommunities.org/id/metropolitan-district-council/wolverhampton","Amazon UK Marketplace","3.04","Global Budgets","5942","Stationery","30/04/2018"
"Wolverhampton City Council","http://opendatacommunities.org/id/metropolitan-district-council/wolverhampton","Amazon UK Marketplace","3.04","Global Budgets","5942","Stationery","30/04/2018"
"Wolverhampton City Council","http://opendatacommunities.org/id/metropolitan-district-council/wolverhampton","Amazon UK Marketplace","3.04","Global Budgets","5942","Stationery","30/04/2018"
"Wolverhampton City Council","http://opendatacommunities.org/id/metropolitan-district-council/wolverhampton","Amazon UK Marketplace","10.32","Global Budgets","5942","Books","30/04/2018"
"Wolverhampton City Council","http://opendatacommunities.org/id/metropolitan-district-council/wolverhampton","Amazon UK Marketplace","4.08","EIP Locality 3","5942","Equipment - Purchase","30/04/2018"
"Wolverhampton City Council","http://opendatacommunities.org/id/metropolitan-district-council/wolverhampton","ASDA GROCERIES ONLINE","60.98","Ernest Bold Court","5411","Provisions (Not for resale)","30/04/2018"
"Wolverhampton City Council","http://opendatacommunities.org/id/metropolitan-district-council/wolverhampton","LBWF","27.00","CIN/CP Social Work Unit - Area 5","9399","Section 17","30/04/2018"
"Wolverhampton City Council","http://opendatacommunities.org/id/metropolitan-district-council/wolverhampton","Amazon UK Marketplace","7.98","Parks - Management and Admin","5942","Books","30/04/2018"
"Wolverhampton City Council","http://opendatacommunities.org/id/metropolitan-district-council/wolverhampton","Amazon UK Marketplace","10.58","Parks - Ranger Service","5942","Equipment - Purchase","30/04/2018"
"Wolverhampton City Council","http://opendatacommunities.org/id/metropolitan-district-council/wolverhampton","UNIVERSAL LANGUAGE SOL","295.00","Delivery & OCE Development","8999","Services - Translation fees","30/04/2018"
"Wolverhampton City Council","http://opendatacommunities.org/id/metropolitan-district-council/wolverhampton","BLOXWICH  SST","4.90","Economic Development","4112","Public Transport","30/04/2018"
"Wolverhampton City Council","http://opendatacommunities.org/id/metropolitan-district-council/wolverhampton","WOLVERHAMPTON CC","4.58","IMPACT","7523","Car Allowances","30/04/2018"
"Wolverhampton City Council","http://opendatacommunities.org/id/metropolitan-district-council/wolverhampton","FLYBE.COM FZMHSR       0","128.05","Leonardo Da Vinci Project","4511","Public Transport","30/04/2018"
"Wolverhampton City Council","http://opendatacommunities.org/id/metropolitan-district-council/wolverhampton","ASDA SUPERSTORE","66.58","Mayoral Expenses","5411","Provisions (Not for resale)","30/04/2018"
"Wolverhampton City Council","http://opendatacommunities.org/id/metropolitan-district-council/wolverhampton","ASDA SUPERSTORE","105.00","Mayoral Expenses","5411","Hospitality","30/04/2018"
"Wolverhampton City Council","http://opendatacommunities.org/id/metropolitan-district-council/wolverhampton","Trainline","137.50","Admin & Support","4112","Public Transport","30/04/2018"
"Wolverhampton City Council","http://opendatacommunities.org/id/metropolitan-district-council/wolverhampton","Amazon EU","66.66","City Direct","5969","Equipment - Purchase","30/04/2018"
"Wolverhampton City Council","http://opendatacommunities.org/id/metropolitan-district-council/wolverhampton","ITUNES.COM/BILL","0.79","Strategic ICTS (ICT Serv Budget)","5735","Computing - Purchase of Software","30/04/2018"
"Wolverhampton City Council","http://opendatacommunities.org/id/metropolitan-district-council/wolverhampton","PAYPAL  SCREWFIX","101.92","Strategic ICTS (ICT Serv Budget)","5099","Equipment - Purchase","30/04/2018"
"Wolverhampton City Council","http://opendatacommunities.org/id/metropolitan-district-council/wolverhampton","PREMIER INN","65.00","Children & Young People Support Costs","3811","Services - Supplies & Services to users","27/04/2018"
"Wolverhampton City Council","http://opendatacommunities.org/id/metropolitan-district-council/wolverhampton","PREMIER INN","78.74","Safeguarding Admin Resource","3811","Services - Supplies & Services to users","27/04/2018"
"Wolverhampton City Council","http://opendatacommunities.org/id/metropolitan-district-council/wolverhampton","000002200500000","240.00","Childrens with Disabilities Team","6011","No Recourse to Public Funds","27/04/2018"
"Wolverhampton City Council","http://opendatacommunities.org/id/metropolitan-district-council/wolverhampton","ROYAL BK OF SCOTLAND","250.00","CIN/CP Social Work Unit - Area 6","6011","Financial Assistance In Exceptional Circ","27/04/2018"
"Wolverhampton City Council","http://opendatacommunities.org/id/metropolitan-district-council/wolverhampton","Amazon UK Marketplace","12.87","WV Active Marketing","5942","Books","27/04/2018"
"Wolverhampton City Council","http://opendatacommunities.org/id/metropolitan-district-council/wolverhampton","REGISTRATION SERVICES","31.00","IMPACT","7999","Educ Trips, Holidays, Outings, Activity","27/04/2018"
"Wolverhampton City Council","http://opendatacommunities.org/id/metropolitan-district-council/wolverhampton","WICKES","13.32","Learning Disabilities Management","5211","Equipment - R & M","27/04/2018"
"Wolverhampton City Council","http://opendatacommunities.org/id/metropolitan-district-council/wolverhampton","Trainline","47.10","Legal Services","4112","Public Transport","27/04/2018"
"Wolverhampton City Council","http://opendatacommunities.org/id/metropolitan-district-council/wolverhampton","J VAN VLIET BIRMINGHAM","76.90","Creative Studies Delivery Area","5399","Materials for resale","27/04/2018"
"Wolverhampton City Council","http://opendatacommunities.org/id/metropolitan-district-council/wolverhampton","WICKES","67.48","Parks - Ranger Service","5211","Equipment - Purchase","27/04/2018"
"Wolverhampton City Council","http://opendatacommunities.org/id/metropolitan-district-council/wolverhampton","Amazon UK Marketplace","52.95","Parks - Management and Admin","5942","Books","27/04/2018"
"Wolverhampton City Council","http://opendatacommunities.org/id/metropolitan-district-council/wolverhampton","Amazon UK Marketplace","13.90","Parks - East Area Management","5942","Equipment - Purchase","27/04/2018"
"Wolverhampton City Council","http://opendatacommunities.org/id/metropolitan-district-council/wolverhampton","Amazon UK Marketplace","15.98","Parks - East Area Management","5942","Equipment - Purchase","27/04/2018"
"Wolverhampton City Council","http://opendatacommunities.org/id/metropolitan-district-council/wolverhampton","Amazon UK Marketplace","49.06","Parks - Management and Admin","5942","Books","27/04/2018"
"Wolverhampton City Council","http://opendatacommunities.org/id/metropolitan-district-council/wolverhampton","ARGOS LTD","28.99","LAC Transitions Team","5310","Equipment - Purchase","27/04/2018"
"Wolverhampton City Council","http://opendatacommunities.org/id/metropolitan-district-council/wolverhampton","N SOFTWARE INC","-1222.20","Strategic ICTS (ICT Serv Budget)","5045","Computing - Purchase of Software","27/04/2018"
"Wolverhampton City Council","http://opendatacommunities.org/id/metropolitan-district-council/wolverhampton","Amazon EU","147.42","Strategic ICTS (ICT Serv Budget)","5969","Computing - Purchase of Hardware","27/04/2018"
"Wolverhampton City Council","http://opendatacommunities.org/id/metropolitan-district-council/wolverhampton","WEST MID TRAVEL","212.25","Youth Offending Team","4131","Public Transport","27/04/2018"
"Wolverhampton City Council","http://opendatacommunities.org/id/metropolitan-district-council/wolverhampton","SAINSBURYS (2340)","4.00","Northicote Farm","5411","Equipment - R & M","27/04/2018"
"Wolverhampton City Council","http://opendatacommunities.org/id/metropolitan-district-council/wolverhampton","POUNDLAND LTD 1463","10.10","Public Health Support Costs","5310","Equipment - Purchase","27/04/2018"
"Wolverhampton City Council","http://opendatacommunities.org/id/metropolitan-district-council/wolverhampton","EBUYER (UK) LTD","109.32","Strategic ICTS (ICT Serv Budget)","5722","Equipment - Purchase","27/04/2018"
"Wolverhampton City Council","http://opendatacommunities.org/id/metropolitan-district-council/wolverhampton","TFL.GOV.UK/CP","2.40","Managing Director","4111","Public Transport","27/04/2018"
"Wolverhampton City Council","http://opendatacommunities.org/id/metropolitan-district-council/wolverhampton","WWW.SHOWDATA.COM","25.50","Intensive Family Support Team","5999","Equipment - Purchase","27/04/2018"
"Wolverhampton City Council","http://opendatacommunities.org/id/metropolitan-district-council/wolverhampton","ASDA GROCERIES ONLINE","-4.55","Upper Pendeford Farm Childrens Home","5411","Provisions (Not for resale)","27/04/2018"
"Wolverhampton City Council","http://opendatacommunities.org/id/metropolitan-district-council/wolverhampton","ASDA GROCERIES ONLINE","219.67","Upper Pendeford Farm Childrens Home","5411","Provisions (Not for resale)","27/04/2018"
"Wolverhampton City Council","http://opendatacommunities.org/id/metropolitan-district-council/wolverhampton","CARD FACTORY","12.02","LAC Transitions Team","5947","Client Allowances","27/04/2018"
"Wolverhampton City Council","http://opendatacommunities.org/id/metropolitan-district-council/wolverhampton","WOLVERHAMPTON TO","7.25","Telecare","4112","Public Transport","27/04/2018"
"Wolverhampton City Council","http://opendatacommunities.org/id/metropolitan-district-council/wolverhampton","ICELAND","11.49","Carers Support","5411","Provisions (Not for resale)","27/04/2018"
"Wolverhampton City Council","http://opendatacommunities.org/id/metropolitan-district-council/wolverhampton","Amazon UK Marketplace","5.80","Global Budgets","5942","Books","27/04/2018"
"Wolverhampton City Council","http://opendatacommunities.org/id/metropolitan-district-council/wolverhampton","Amazon UK Marketplace","15.61","EIP Locality 3","5942","Equipment - Purchase","27/04/2018"
"Wolverhampton City Council","http://opendatacommunities.org/id/metropolitan-district-council/wolverhampton","TFM FARM & COUNTRY SUP","6.84","Northicote Farm","5399","Materials","27/04/2018"
"Wolverhampton City Council","http://opendatacommunities.org/id/metropolitan-district-council/wolverhampton","TESCO STORES 5194","103.50","Towers Outdoor Education Centre","5411","Provisions (Not for resale)","26/04/2018"
"Wolverhampton City Council","http://opendatacommunities.org/id/metropolitan-district-council/wolverhampton","WWW.PLASTICSHEETS.COM","44.45","Towers Outdoor Education Centre","5085","Equipment - Purchase","26/04/2018"
"Wolverhampton City Council","http://opendatacommunities.org/id/metropolitan-district-council/wolverhampton","MCOLLS","87.50","Headstart - Young People Engagement","5499","Educ Trips, Holidays, Outings, Activity","26/04/2018"
"Wolverhampton City Council","http://opendatacommunities.org/id/metropolitan-district-council/wolverhampton","POST OFFICE COUNTER","100.00","Headstart - Young People Engagement","9402","Educ Trips, Holidays, Outings, Activity","26/04/2018"
"Wolverhampton City Council","http://opendatacommunities.org/id/metropolitan-district-council/wolverhampton","WCC - CIVIC CENTRE CAT","4.40","IMPACT","9399","Services - Fees and Charges","26/04/2018"
"Wolverhampton City Council","http://opendatacommunities.org/id/metropolitan-district-council/wolverhampton","LOVE2SHOP.CO.UK","441.45","IMPACT","8641","Educ Trips, Holidays, Outings, Activity","26/04/2018"
"Wolverhampton City Council","http://opendatacommunities.org/id/metropolitan-district-council/wolverhampton","Amazon EU","128.70","Bert Williams Leisure Centre","5969","Equipment - Purchase","26/04/2018"
"Wolverhampton City Council","http://opendatacommunities.org/id/metropolitan-district-council/wolverhampton","WM MORRISONS","27.55","Service Director Adults","5411","Provisions (Not for resale)","26/04/2018"
"Wolverhampton City Council","http://opendatacommunities.org/id/metropolitan-district-council/wolverhampton","Amazon EU","295.60","Strategic ICTS (ICT Serv Budget)","5969","Equipment - Purchase","26/04/2018"
"Wolverhampton City Council","http://opendatacommunities.org/id/metropolitan-district-council/wolverhampton","Amazon UK Marketplace","75.97","Strategic ICTS (ICT Serv Budget)","5942","Equipment - Purchase","26/04/2018"
"Wolverhampton City Council","http://opendatacommunities.org/id/metropolitan-district-council/wolverhampton","SCREWFIX DIRECT LT","3.32","Caretakers Community Centre","5211","Materials","26/04/2018"
"Wolverhampton City Council","http://opendatacommunities.org/id/metropolitan-district-council/wolverhampton","CUMMINGS BROTHERS LOCK","5.00","Caretakers Community Centre","7399","Equipment - Purchase","26/04/2018"
"Wolverhampton City Council","http://opendatacommunities.org/id/metropolitan-district-council/wolverhampton","CUMMINGS BROTHERS LOCK","25.42","Caretakers Community Centre","7399","Equipment - Purchase","26/04/2018"
"Wolverhampton City Council","http://opendatacommunities.org/id/metropolitan-district-council/wolverhampton","VERIFONE TAXI/PRIVATE","14.00","Managing Director","4121","Client Transport","26/04/2018"
"Wolverhampton City Council","http://opendatacommunities.org/id/metropolitan-district-council/wolverhampton","Amazon UK Marketplace","99.99","Central Baths","5942","Books","26/04/2018"
"Wolverhampton City Council","http://opendatacommunities.org/id/metropolitan-district-council/wolverhampton","W M MORRISONS.COM","90.06","Creative Studies Delivery Area","5411","Provisions (Not for resale)","26/04/2018"
"Wolverhampton City Council","http://opendatacommunities.org/id/metropolitan-district-council/wolverhampton","PAYPAL  MUSEUMSASSC","125.00","Research & Development","8398","Services - Supplies & Services to users","26/04/2018"
"Wolverhampton City Council","http://opendatacommunities.org/id/metropolitan-district-council/wolverhampton","ASDA SUPERSTORE","7.92","LAC Transitions Team","5411","Client Allowances","26/04/2018"
"Wolverhampton City Council","http://opendatacommunities.org/id/metropolitan-district-council/wolverhampton","MANCHESTER CITY COUNCI","1600.00","HRA General","7523","Services - Fees and Charges","26/04/2018"
"Wolverhampton City Council","http://opendatacommunities.org/id/metropolitan-district-council/wolverhampton","LADS & LASSES SCHOOL W","29.99","Vulnerable Young Persons Team","5641","Clothing / Uniforms","26/04/2018"
"Wolverhampton City Council","http://opendatacommunities.org/id/metropolitan-district-council/wolverhampton","Amazon UK Marketplace","53.96","School Meals Statutory Standards","5942","Equipment - Purchase","26/04/2018"
"Wolverhampton City Council","http://opendatacommunities.org/id/metropolitan-district-council/wolverhampton","WICKES","14.57","Specialist Support Service - North","5211","Equipment - R & M","26/04/2018"
"Wolverhampton City Council","http://opendatacommunities.org/id/metropolitan-district-council/wolverhampton","WOLVERHAMPTON ART","14.90","Education And Access","8299","Catering","26/04/2018"
"Wolverhampton City Council","http://opendatacommunities.org/id/metropolitan-district-council/wolverhampton","ASDA GROCERIES ONLINE","5.00","Ernest Bold Court","5411","Provisions (Not for resale)","26/04/2018"
"Wolverhampton City Council","http://opendatacommunities.org/id/metropolitan-district-council/wolverhampton","LOYD WEDNESFIELD WOLVE","100.00","EIP Locality 8","6011","Grant Payments","26/04/2018"
"Wolverhampton City Council","http://opendatacommunities.org/id/metropolitan-district-council/wolverhampton","Trainline","42.80","Safeguarding Admin Resource","4112","Public Transport","26/04/2018"
"Wolverhampton City Council","http://opendatacommunities.org/id/metropolitan-district-council/wolverhampton","Amazon UK Marketplace","76.82","Environmental Health - Pub Prot - Gen","5942","Equipment - Purchase","26/04/2018"
"Wolverhampton City Council","http://opendatacommunities.org/id/metropolitan-district-council/wolverhampton","Amazon UK Marketplace","55.43","Environmental Health - Pub Prot - Gen","5942","Equipment - Purchase","26/04/2018"
"Wolverhampton City Council","http://opendatacommunities.org/id/metropolitan-district-council/wolverhampton","J VAN VLIET BIRMINGHAM","60.65","Creative Studies Delivery Area","5399","Materials","26/04/2018"
"Wolverhampton City Council","http://opendatacommunities.org/id/metropolitan-district-council/wolverhampton","J VAN VLIET BIRMINGHAM","87.76","Creative Studies Delivery Area","5399","Materials","26/04/2018"
"Wolverhampton City Council","http://opendatacommunities.org/id/metropolitan-district-council/wolverhampton","J VAN VLIET BIRMINGHAM","76.15","Creative Studies Delivery Area","5399","Materials for resale","26/04/2018"
"Wolverhampton City Council","http://opendatacommunities.org/id/metropolitan-district-council/wolverhampton","J VAN VLIET BIRMINGHAM","33.00","Creative Studies Delivery Area","5399","Materials","26/04/2018"
"Wolverhampton City Council","http://opendatacommunities.org/id/metropolitan-district-council/wolverhampton","HOUGH GREEN GARAGE","154.50","Fleet Management","7538","Vehicle Maintenance - Repairs","26/04/2018"
"Wolverhampton City Council","http://opendatacommunities.org/id/metropolitan-district-council/wolverhampton","GO CARZ","36.30","CIN/CP Social Work Unit - Area 8","4121","Section 17","26/04/2018"
"Wolverhampton City Council","http://opendatacommunities.org/id/metropolitan-district-council/wolverhampton","P.F. CUSACK TOOL SUPPL","28.00","Parks - Ranger Service","5211","Protective Clothing","26/04/2018"
"Wolverhampton City Council","http://opendatacommunities.org/id/metropolitan-district-council/wolverhampton","HOLLYBUSH NURSERIES LT","48.72","Northicote Farm","5261","Equipment - R & M","26/04/2018"
"Wolverhampton City Council","http://opendatacommunities.org/id/metropolitan-district-council/wolverhampton","Amazon UK Marketplace","6.66","Northicote Farm","5942","Equipment - R & M","26/04/2018"
"Wolverhampton City Council","http://opendatacommunities.org/id/metropolitan-district-council/wolverhampton","TRFSA   THOMSONREUTERS","83.00","Legal Services","8999","Books","25/04/2018"
"Wolverhampton City Council","http://opendatacommunities.org/id/metropolitan-district-council/wolverhampton","Trainline","-75.00","CIN/CP Social Work Unit - Area 4","4112","Section 17","25/04/2018"
"Wolverhampton City Council","http://opendatacommunities.org/id/metropolitan-district-council/wolverhampton","WWW.ICO.GOV.UK","35.00","Members Expenses","9399","Subscriptions","25/04/2018"
"Wolverhampton City Council","http://opendatacommunities.org/id/metropolitan-district-council/wolverhampton","WWW.ICO.GOV.UK","35.00","Members Expenses","9399","Subscriptions","25/04/2018"
"Wolverhampton City Council","http://opendatacommunities.org/id/metropolitan-district-council/wolverhampton","Trainline","-23.60","SEN Special Education Admin","4112","Public Transport","25/04/2018"
"Wolverhampton City Council","http://opendatacommunities.org/id/metropolitan-district-council/wolverhampton","Wix.com","93.13","Technical Support","5817","Computing - Purchase of Software","25/04/2018"
"Wolverhampton City Council","http://opendatacommunities.org/id/metropolitan-district-council/wolverhampton","Amazon EU","13.43","Global Budgets","5969","Books","25/04/2018"
"Wolverhampton City Council","http://opendatacommunities.org/id/metropolitan-district-council/wolverhampton","Amazon UK Marketplace","36.65","Global Budgets","5942","Equipment - Purchase","25/04/2018"
"Wolverhampton City Council","http://opendatacommunities.org/id/metropolitan-district-council/wolverhampton","Amazon UK Marketplace","3.71","Towers Outdoor Education Centre","5942","Equipment - Purchase","25/04/2018"
"Wolverhampton City Council","http://opendatacommunities.org/id/metropolitan-district-council/wolverhampton","B & Q 1243","20.00","Ernest Bold Court","5211","Fixtures and Fittings - R&M","25/04/2018"
"Wolverhampton City Council","http://opendatacommunities.org/id/metropolitan-district-council/wolverhampton","B & Q 1243","4.97","Specialist Support Service - North","5211","Equipment - R & M","25/04/2018"
"Wolverhampton City Council","http://opendatacommunities.org/id/metropolitan-district-council/wolverhampton","POST OFFICE COUNTER","2.08","LAC Transitions Team","9402","Client Allowances","25/04/2018"
"Wolverhampton City Council","http://opendatacommunities.org/id/metropolitan-district-council/wolverhampton","Amazon EU","25.49","Inclusion Support","5969","Equipment - Purchase","25/04/2018"
"Wolverhampton City Council","http://opendatacommunities.org/id/metropolitan-district-council/wolverhampton","RICARDO-AEA LTD","50.00","Environmental Health - Pub Prot - Gen","7392","Training Expenses","25/04/2018"
"Wolverhampton City Council","http://opendatacommunities.org/id/metropolitan-district-council/wolverhampton","PAYPAL  THEBESTDEAL","2.09","Environmental Health - Pub Prot - Gen","5999","Equipment - Purchase","25/04/2018"
"Wolverhampton City Council","http://opendatacommunities.org/id/metropolitan-district-council/wolverhampton","Trainline","18.05","CIN/CP Social Work Unit - Area 4","4112","No Recourse to Public Funds","25/04/2018"
"Wolverhampton City Council","http://opendatacommunities.org/id/metropolitan-district-council/wolverhampton","Amazon UK Marketplace","11.17","Direct Payments","5942","Stationery","25/04/2018"
"Wolverhampton City Council","http://opendatacommunities.org/id/metropolitan-district-council/wolverhampton","Amazon UK Marketplace","13.32","Headstart - Young People Engagement","5942","Equipment - Purchase","25/04/2018"
"Wolverhampton City Council","http://opendatacommunities.org/id/metropolitan-district-council/wolverhampton","POST OFFICE COUNTER","6.50","Register Office","9402","Comms - Postage","25/04/2018"
"Wolverhampton City Council","http://opendatacommunities.org/id/metropolitan-district-council/wolverhampton","Amazon UK Marketplace","73.81","Education Business Partnership","5942","Books","25/04/2018"
"Wolverhampton City Council","http://opendatacommunities.org/id/metropolitan-district-council/wolverhampton","Amazon UK Marketplace","4.15","Education Business Partnership","5942","Books","25/04/2018"
"Wolverhampton City Council","http://opendatacommunities.org/id/metropolitan-district-council/wolverhampton","WWW.DIRECTHYGIENE.COM","225.60","Bert Williams Leisure Centre","7399","Equipment - Purchase","25/04/2018"
"Wolverhampton City Council","http://opendatacommunities.org/id/metropolitan-district-council/wolverhampton","Dyslexie Font B.V.","318.42","Admin & Support","5817","Computing - Purchase of Software","25/04/2018"
"Wolverhampton City Council","http://opendatacommunities.org/id/metropolitan-district-council/wolverhampton","WWW.TTS-GROUPS.CO.UK","47.95","LAC Education Team (LACE)","5943","Stationery","25/04/2018"
"Wolverhampton City Council","http://opendatacommunities.org/id/metropolitan-district-council/wolverhampton","ARGOS LTD","24.98","LAC Transitions Team","5310","Client Allowances","25/04/2018"
"Wolverhampton City Council","http://opendatacommunities.org/id/metropolitan-district-council/wolverhampton","ASDA SUPERSTORE","14.17","LAC Transitions Team","5411","Client Allowances","25/04/2018"
"Wolverhampton City Council","http://opendatacommunities.org/id/metropolitan-district-council/wolverhampton","ASDA SUPERSTORE","51.52","EIP Locality 6","5411","Provisions (Not for resale)","25/04/2018"
"Wolverhampton City Council","http://opendatacommunities.org/id/metropolitan-district-council/wolverhampton","Virgin Trains","84.50","LAC Team","4112","Public Transport","25/04/2018"
"Wolverhampton City Council","http://opendatacommunities.org/id/metropolitan-district-council/wolverhampton","B&M RETAIL LTD","20.80","LAC Transitions Team","5310","Independant Living Allowance","25/04/2018"
"Wolverhampton City Council","http://opendatacommunities.org/id/metropolitan-district-council/wolverhampton","POST OFFICE COUNTER","1.77","EIP Locality 3","9402","Comms - Postage","25/04/2018"
"Wolverhampton City Council","http://opendatacommunities.org/id/metropolitan-district-council/wolverhampton","ARGOS LTD","169.95","LAC Transitions Team","5310","Client Allowances","25/04/2018"
"Wolverhampton City Council","http://opendatacommunities.org/id/metropolitan-district-council/wolverhampton","Amazon UK Marketplace","20.82","LAC Transitions Team","5942","Client Allowances","25/04/2018"
"Wolverhampton City Council","http://opendatacommunities.org/id/metropolitan-district-council/wolverhampton","ARGOS LTD","144.97","LAC Transitions Team","5310","Client Allowances","24/04/2018"
"Wolverhampton City Council","http://opendatacommunities.org/id/metropolitan-district-council/wolverhampton","THE RANGE","10.00","Towers Outdoor Education Centre","5311","Equipment - Purchase","24/04/2018"
"Wolverhampton City Council","http://opendatacommunities.org/id/metropolitan-district-council/wolverhampton","SCREWFIX DIRECT","3.16","Towers Outdoor Education Centre","5211","Fixtures and Fittings - Purchases","24/04/2018"
"Wolverhampton City Council","http://opendatacommunities.org/id/metropolitan-district-council/wolverhampton","SCREWFIX DIRECT","6.65","Towers Outdoor Education Centre","5211","Materials","24/04/2018"
"Wolverhampton City Council","http://opendatacommunities.org/id/metropolitan-district-council/wolverhampton","B & Q 1112","12.00","Towers Outdoor Education Centre","5211","Materials","24/04/2018"
"Wolverhampton City Council","http://opendatacommunities.org/id/metropolitan-district-council/wolverhampton","Amazon UK Marketplace","12.87","Towers Outdoor Education Centre","5942","Fixtures and Fittings - Purchases","24/04/2018"
"Wolverhampton City Council","http://opendatacommunities.org/id/metropolitan-district-council/wolverhampton","Amazon EU","45.58","Delivery & OCE Development","5969","Equipment - Purchase","24/04/2018"
"Wolverhampton City Council","http://opendatacommunities.org/id/metropolitan-district-council/wolverhampton","SUK RETAIL LTD","40.82","Fostering Team & Allowances","5943","Stationery","24/04/2018"
"Wolverhampton City Council","http://opendatacommunities.org/id/metropolitan-district-council/wolverhampton","000002200500000","100.00","Headstart Phase 3","6011","Financial Assistance In Exceptional Circ","24/04/2018"
"Wolverhampton City Council","http://opendatacommunities.org/id/metropolitan-district-council/wolverhampton","Amazon UK Marketplace","29.22","Headstart Phase 3","5942","Subsistence","24/04/2018"
"Wolverhampton City Council","http://opendatacommunities.org/id/metropolitan-district-council/wolverhampton","ASDA SUPERSTORE","13.92","Youth Offending Team","5411","Comms - Postage","24/04/2018"
"Wolverhampton City Council","http://opendatacommunities.org/id/metropolitan-district-council/wolverhampton","ASDA SUPERSTORE","27.42","Youth Offending Team","5411","Provisions (Not for resale)","24/04/2018"
"Wolverhampton City Council","http://opendatacommunities.org/id/metropolitan-district-council/wolverhampton","Amazon EU","58.32","Strategic ICTS (ICT Serv Budget)","5969","Equipment - Purchase","24/04/2018"
"Wolverhampton City Council","http://opendatacommunities.org/id/metropolitan-district-council/wolverhampton","Amazon EU","52.46","Strategic ICTS (ICT Serv Budget)","5969","Equipment - Purchase","24/04/2018"
"Wolverhampton City Council","http://opendatacommunities.org/id/metropolitan-district-council/wolverhampton","Amazon UK Marketplace","28.90","Strategic ICTS (ICT Serv Budget)","5942","Equipment - Purchase","24/04/2018"
"Wolverhampton City Council","http://opendatacommunities.org/id/metropolitan-district-council/wolverhampton","PAYPAL  CONTEMPORAR","15.00","Research & Development","8398","Services - Supplies & Services to users","24/04/2018"
"Wolverhampton City Council","http://opendatacommunities.org/id/metropolitan-district-council/wolverhampton","HUGHES","416.67","LAC Transitions Team","5732","Client Allowances","24/04/2018"
"Wolverhampton City Council","http://opendatacommunities.org/id/metropolitan-district-council/wolverhampton","ROYAL CARPETS","279.17","LAC Transitions Team","5713","Client Allowances","24/04/2018"
"Wolverhampton City Council","http://opendatacommunities.org/id/metropolitan-district-council/wolverhampton","RAILEASY WEB SITE","34.87","Director of Education","4112","Public Transport","24/04/2018"
"Wolverhampton City Council","http://opendatacommunities.org/id/metropolitan-district-council/wolverhampton","HOBBY CRAFT LTD","8.33","Connexions Contract","5970","Stationery","24/04/2018"
"Wolverhampton City Council","http://opendatacommunities.org/id/metropolitan-district-council/wolverhampton","ASDA GROCERIES ONLINE","-0.40","Ernest Bold Court","5411","Provisions (Not for resale)","24/04/2018"
"Wolverhampton City Council","http://opendatacommunities.org/id/metropolitan-district-council/wolverhampton","ASDA GROCERIES ONLINE","61.30","Ernest Bold Court","5411","Provisions (Not for resale)","24/04/2018"
"Wolverhampton City Council","http://opendatacommunities.org/id/metropolitan-district-council/wolverhampton","ASDA SUPERSTORE","10.47","CIN/CP Social Work Unit - Area 5","5411","No Recourse to Public Funds","24/04/2018"
"Wolverhampton City Council","http://opendatacommunities.org/id/metropolitan-district-council/wolverhampton","SAINSBURYS 2198","13.33","Vulnerable Young Persons Team","5411","Provisions (Not for resale)","24/04/2018"
"Wolverhampton City Council","http://opendatacommunities.org/id/metropolitan-district-council/wolverhampton","POST OFFICE COUNTER","201.00","Vulnerable Young Persons Team","9402","Comms - Postage","24/04/2018"
"Wolverhampton City Council","http://opendatacommunities.org/id/metropolitan-district-council/wolverhampton","WEST MID TRAVEL","94.25","Community Pathways","4131","Public Transport","24/04/2018"
"Wolverhampton City Council","http://opendatacommunities.org/id/metropolitan-district-council/wolverhampton","Trainline","38.90","SEN Special Education Admin","4112","Public Transport","24/04/2018"
"Wolverhampton City Council","http://opendatacommunities.org/id/metropolitan-district-council/wolverhampton","Cross Country Trains","7.80","Head of Strategic Commissioning � People","4112","Public Transport","24/04/2018"
"Wolverhampton City Council","http://opendatacommunities.org/id/metropolitan-district-council/wolverhampton","E01577600000000","200.00","EIP Locality 3","6011","Grant Payments","24/04/2018"
"Wolverhampton City Council","http://opendatacommunities.org/id/metropolitan-district-council/wolverhampton","ASDA SUPERSTORE","13.11","CIN/CP Social Work Unit - Area 5","5411","No Recourse to Public Funds","24/04/2018"
"Wolverhampton City Council","http://opendatacommunities.org/id/metropolitan-district-council/wolverhampton","ASDA SUPERSTORE","22.08","CIN/CP Social Work Unit - Area 5","5411","No Recourse to Public Funds","24/04/2018"
"Wolverhampton City Council","http://opendatacommunities.org/id/metropolitan-district-council/wolverhampton","WMCA.ORG.UK","10.00","CIN/CP Social Work Unit - Area 5","9399","Section 17","24/04/2018"
"Wolverhampton City Council","http://opendatacommunities.org/id/metropolitan-district-council/wolverhampton","DUDLEY MET CNL ATP","15.50","CIN/CP Social Work Unit - Area 5","7999","Section 17","24/04/2018"
"Wolverhampton City Council","http://opendatacommunities.org/id/metropolitan-district-council/wolverhampton","Trainline","56.50","CIN/CP Social Work Unit - Area 8","4112","Public Transport","24/04/2018"
"Wolverhampton City Council","http://opendatacommunities.org/id/metropolitan-district-council/wolverhampton","ROYAL BK OF SCOTLAND","100.00","EIP Locality 7","6011","Grant Payments","24/04/2018"
"Wolverhampton City Council","http://opendatacommunities.org/id/metropolitan-district-council/wolverhampton","W M MORRISONS.COM","61.97","Creative Studies Delivery Area","5411","Provisions (Not for resale)","23/04/2018"
"Wolverhampton City Council","http://opendatacommunities.org/id/metropolitan-district-council/wolverhampton","Trainline","14.55","Archives","4112","Public Transport","23/04/2018"
"Wolverhampton City Council","http://opendatacommunities.org/id/metropolitan-district-council/wolverhampton","TESCO STORES 5397","40.00","EIP Locality 1","5411","Grant Payments","23/04/2018"
"Wolverhampton City Council","http://opendatacommunities.org/id/metropolitan-district-council/wolverhampton","Trainline","151.50","Public Health Support Costs","4112","Public Transport","23/04/2018"
"Wolverhampton City Council","http://opendatacommunities.org/id/metropolitan-district-council/wolverhampton","Amazon","7.99","Technical Support","5968","Subscriptions","23/04/2018"
"Wolverhampton City Council","http://opendatacommunities.org/id/metropolitan-district-council/wolverhampton","Amazon UK Marketplace","9.00","Global Budgets","5942","Stationery","23/04/2018"
"Wolverhampton City Council","http://opendatacommunities.org/id/metropolitan-district-council/wolverhampton","BARCLAYS","210.00","EIP Locality 3","6011","Grant Payments","23/04/2018"
"Wolverhampton City Council","http://opendatacommunities.org/id/metropolitan-district-council/wolverhampton","ASDA GROCERIES ONLINE","-0.21","Ernest Bold Court","5411","Provisions (Not for resale)","23/04/2018"
"Wolverhampton City Council","http://opendatacommunities.org/id/metropolitan-district-council/wolverhampton","ASDA GROCERIES ONLINE","75.90","Ernest Bold Court","5411","Provisions (Not for resale)","23/04/2018"
"Wolverhampton City Council","http://opendatacommunities.org/id/metropolitan-district-council/wolverhampton","WWW.ARGOS.CO.UK","86.61","CIN/CP Social Work Unit - Area 4","5310","No Recourse to Public Funds","23/04/2018"
"Wolverhampton City Council","http://opendatacommunities.org/id/metropolitan-district-council/wolverhampton","SAINSBURYS","200.00","Duke Street Bungalows","6011","Provisions (Not for resale)","23/04/2018"
"Wolverhampton City Council","http://opendatacommunities.org/id/metropolitan-district-council/wolverhampton","MBL SEMINARS","240.00","Central Training","8299","Training Expenses","23/04/2018"
"Wolverhampton City Council","http://opendatacommunities.org/id/metropolitan-district-council/wolverhampton","OYSTER AUTOTOPUP","20.00","Legal Services","4112","Public Transport","23/04/2018"
"Wolverhampton City Council","http://opendatacommunities.org/id/metropolitan-district-council/wolverhampton","Trainline","55.80","Legal Services","4112","Public Transport","23/04/2018"
"Wolverhampton City Council","http://opendatacommunities.org/id/metropolitan-district-council/wolverhampton","HSBC CASH MACHINE","20.00","Community Enablement","6011","Materials","23/04/2018"
"Wolverhampton City Council","http://opendatacommunities.org/id/metropolitan-district-council/wolverhampton","PAYPAL  MES LTD","170.00","Music Support Team","8211","Services - Professional Fees","23/04/2018"
"Wolverhampton City Council","http://opendatacommunities.org/id/metropolitan-district-council/wolverhampton","000002200500000","80.00","Head of Service Specialist Int Support","6011","Direct Work With Children","23/04/2018"
"Wolverhampton City Council","http://opendatacommunities.org/id/metropolitan-district-council/wolverhampton","Perton Golf Club Pro S","12.00","Youth Offending Team","7997","Educ Trips, Holidays, Outings, Activity","23/04/2018"
"Wolverhampton City Council","http://opendatacommunities.org/id/metropolitan-district-council/wolverhampton","WEST COAST TRAINS","27.90","Technician","4112","Public Transport","23/04/2018"
"Wolverhampton City Council","http://opendatacommunities.org/id/metropolitan-district-council/wolverhampton","Amazon UK Marketplace","47.95","Education And Access","5942","Equipment - Purchase","23/04/2018"
"Wolverhampton City Council","http://opendatacommunities.org/id/metropolitan-district-council/wolverhampton","ASDA SUPERSTORE","19.26","Mayoral Expenses","5411","Hospitality","23/04/2018"
"Wolverhampton City Council","http://opendatacommunities.org/id/metropolitan-district-council/wolverhampton","ASDA SUPERSTORE","85.83","Mayoral Expenses","5411","Equipment - Purchase","23/04/2018"
"Wolverhampton City Council","http://opendatacommunities.org/id/metropolitan-district-council/wolverhampton","LOYD 37 CHURCH STREET","300.00","EIP Locality 8","6011","Grant Payments","23/04/2018"
"Wolverhampton City Council","http://opendatacommunities.org/id/metropolitan-district-council/wolverhampton","Amazon UK Marketplace","21.97","EIP Locality 8","5942","Stationery","23/04/2018"
"Wolverhampton City Council","http://opendatacommunities.org/id/metropolitan-district-council/wolverhampton","Amazon UK Marketplace","26.50","EIP Locality 8","5942","Equipment - Hire","23/04/2018"
"Wolverhampton City Council","http://opendatacommunities.org/id/metropolitan-district-council/wolverhampton","Amazon EU","21.35","Towers Outdoor Education Centre","5969","Equipment - Purchase","23/04/2018"
"Wolverhampton City Council","http://opendatacommunities.org/id/metropolitan-district-council/wolverhampton","Amazon UK Marketplace","18.30","Towers Outdoor Education Centre","5942","Equipment - Purchase","23/04/2018"
"Wolverhampton City Council","http://opendatacommunities.org/id/metropolitan-district-council/wolverhampton","Amazon UK Marketplace","1.64","Towers Outdoor Education Centre","5942","Equipment - Purchase","23/04/2018"
"Wolverhampton City Council","http://opendatacommunities.org/id/metropolitan-district-council/wolverhampton","WOLVERHAMPTON TO","7.80","Economic Development","4112","Public Transport","23/04/2018"
"Wolverhampton City Council","http://opendatacommunities.org/id/metropolitan-district-council/wolverhampton","COSTA COFFEE","2.55","Economic Development","5814","Educ Trips, Holidays, Outings, Activity","23/04/2018"
"Wolverhampton City Council","http://opendatacommunities.org/id/metropolitan-district-council/wolverhampton","WM MORRISON 024","9.17","Fostering Team & Allowances","5411","Provisions (Not for resale)","23/04/2018"
"Wolverhampton City Council","http://opendatacommunities.org/id/metropolitan-district-council/wolverhampton","POST OFFICE COUNTER","0.58","Fostering Team & Allowances","9402","Comms - Postage","23/04/2018"
"Wolverhampton City Council","http://opendatacommunities.org/id/metropolitan-district-council/wolverhampton","COO SP Z OO C90","6.93","GEN Y City Transnational","5812","Educ Trips, Holidays, Outings, Activity","23/04/2018"
"Wolverhampton City Council","http://opendatacommunities.org/id/metropolitan-district-council/wolverhampton","PP FITST ONBOARD","2.30","GEN Y City Transnational","5811","Catering","23/04/2018"
"Wolverhampton City Council","http://opendatacommunities.org/id/metropolitan-district-council/wolverhampton","FACEBK 9K4M5GSAR2","37.86","Communications & Marketing - General","7311","Marketing \ Non-staff advertising","23/04/2018"
"Wolverhampton City Council","http://opendatacommunities.org/id/metropolitan-district-council/wolverhampton","FACEBK 6K4M5GSAR2","462.14","Communications & Marketing - General","7311","Marketing \ Non-staff advertising","23/04/2018"
"Wolverhampton City Council","http://opendatacommunities.org/id/metropolitan-district-council/wolverhampton","Amazon EU","140.34","Headstart Phase 3","5969","Equipment - Purchase","23/04/2018"
"Wolverhampton City Council","http://opendatacommunities.org/id/metropolitan-district-council/wolverhampton","LOVE2SHOP.CO.UK","496.45","IMPACT","8641","Educ Trips, Holidays, Outings, Activity","23/04/2018"
"Wolverhampton City Council","http://opendatacommunities.org/id/metropolitan-district-council/wolverhampton","WWW.THEBEAUTYACADEMY.O","165.83","IMPACT","8249","Training Expenses","23/04/2018"
"Wolverhampton City Council","http://opendatacommunities.org/id/metropolitan-district-council/wolverhampton","WWW.THEBEAUTYACADEMY.O","290.83","IMPACT","8249","Training Expenses","23/04/2018"
"Wolverhampton City Council","http://opendatacommunities.org/id/metropolitan-district-council/wolverhampton","STAFFORDSHIRE C C","70.00","Register Office","5970","Materials","23/04/2018"
"Wolverhampton City Council","http://opendatacommunities.org/id/metropolitan-district-council/wolverhampton","WISEPOPS","52.03","City Direct","7372","Computing - Purchase of Software","23/04/2018"
"Wolverhampton City Council","http://opendatacommunities.org/id/metropolitan-district-council/wolverhampton","B&M RETAIL","31.98","LAC Transitions Team","5310","Client Allowances","23/04/2018"
"Wolverhampton City Council","http://opendatacommunities.org/id/metropolitan-district-council/wolverhampton","SCREWFIX WOLVERHAM","4.40","Cemeteries","5211","Materials","23/04/2018"
"Wolverhampton City Council","http://opendatacommunities.org/id/metropolitan-district-council/wolverhampton","Virgin Trains","54.30","Adoption and Residence Team & Allowances","4112","Public Transport","23/04/2018"
"Wolverhampton City Council","http://opendatacommunities.org/id/metropolitan-district-council/wolverhampton","SCREWFIX WOLVERHAM","33.32","Public Conveniences","5211","Equipment - Purchase","23/04/2018"
"Wolverhampton City Council","http://opendatacommunities.org/id/metropolitan-district-council/wolverhampton","WOLVERHAMPTON TO","7.20","Strategic ICTS (ICT Serv Budget)","4112","Public Transport","23/04/2018"
"Wolverhampton City Council","http://opendatacommunities.org/id/metropolitan-district-council/wolverhampton","WWW.EVAQ8.CO.UK","95.20","Central Baths","5941","Equipment - Purchase","23/04/2018"
"Wolverhampton City Council","http://opendatacommunities.org/id/metropolitan-district-council/wolverhampton","GAFFEY TECHNICAL SERVI","389.50","Central Baths","5996","Equipment - Purchase","23/04/2018"
"Wolverhampton City Council","http://opendatacommunities.org/id/metropolitan-district-council/wolverhampton","Amazon UK Marketplace","56.50","EIP Locality 5","5942","Provisions (Not for resale)","23/04/2018"
"Wolverhampton City Council","http://opendatacommunities.org/id/metropolitan-district-council/wolverhampton","TESCO STORES 5397","8.04","EIP Locality 1","5411","Comms - Postage","20/04/2018"
"Wolverhampton City Council","http://opendatacommunities.org/id/metropolitan-district-council/wolverhampton","TESCO DIRECT","-82.00","Learning Disabilities Management","5999","Equipment - Purchase","20/04/2018"
"Wolverhampton City Council","http://opendatacommunities.org/id/metropolitan-district-council/wolverhampton","E01510300000000","150.00","MASH","6011","Section 17","20/04/2018"
"Wolverhampton City Council","http://opendatacommunities.org/id/metropolitan-district-council/wolverhampton","Amazon EU","12.98","Global Budgets","5969","Books","20/04/2018"
"Wolverhampton City Council","http://opendatacommunities.org/id/metropolitan-district-council/wolverhampton","WICKES","14.31","Learning Disabilities Management","5211","Equipment - R & M","20/04/2018"
"Wolverhampton City Council","http://opendatacommunities.org/id/metropolitan-district-council/wolverhampton","RICARDO-AEA LTD","50.00","Environmental Health - Pub Prot - Gen","7392","Training Expenses","20/04/2018"
"Wolverhampton City Council","http://opendatacommunities.org/id/metropolitan-district-council/wolverhampton","WOLVERHAMPTON TROPHY C","8.33","Global Budgets","5999","Equipment - Purchase","20/04/2018"
"Wolverhampton City Council","http://opendatacommunities.org/id/metropolitan-district-council/wolverhampton","UNTOUCHABLES","12.00","Education Catering - General Overheads","5231","Materials","20/04/2018"
"Wolverhampton City Council","http://opendatacommunities.org/id/metropolitan-district-council/wolverhampton","INSTITUTELI","155.00","Central Training","8699","Training Expenses","20/04/2018"
"Wolverhampton City Council","http://opendatacommunities.org/id/metropolitan-district-council/wolverhampton","POST OFFICE SHOP","52.19","CIN/CP Social Work Unit - Area 8","9402","Comms - Postage","20/04/2018"
"Wolverhampton City Council","http://opendatacommunities.org/id/metropolitan-district-council/wolverhampton","Virgin Trains","26.10","Planning","4112","Public Transport","20/04/2018"
"Wolverhampton City Council","http://opendatacommunities.org/id/metropolitan-district-council/wolverhampton","PARTY NIGHTS","163.00","Communications & Marketing - General","5999","Equipment - Purchase","20/04/2018"
"Wolverhampton City Council","http://opendatacommunities.org/id/metropolitan-district-council/wolverhampton","WM MORRISONS","4.17","Headstart Phase 3","5411","Subsistence","20/04/2018"
"Wolverhampton City Council","http://opendatacommunities.org/id/metropolitan-district-council/wolverhampton","CRUK LOT","70.00","Headstart - Young People Engagement","8398","Services - Supplies & Services to users","20/04/2018"
"Wolverhampton City Council","http://opendatacommunities.org/id/metropolitan-district-council/wolverhampton","YOUR BEAUTIQUE TRAININ","118.80","IMPACT","8299","Training Expenses","20/04/2018"
"Wolverhampton City Council","http://opendatacommunities.org/id/metropolitan-district-council/wolverhampton","LOOP11.COM","144.64","City Direct","7372","Computing - Purchase of Software","20/04/2018"
"Wolverhampton City Council","http://opendatacommunities.org/id/metropolitan-district-council/wolverhampton","CT WOLVERHAMPTON","83.33","LAC Transitions Team","8398","Client Allowances","20/04/2018"
"Wolverhampton City Council","http://opendatacommunities.org/id/metropolitan-district-council/wolverhampton","COVENTRY CITY COUNCIL","6.67","Cemeteries","7523","Car Allowances","20/04/2018"
"Wolverhampton City Council","http://opendatacommunities.org/id/metropolitan-district-council/wolverhampton","GO CARZ","5.40","Adoption and Residence Team & Allowances","4121","Client Transport","20/04/2018"
"Wolverhampton City Council","http://opendatacommunities.org/id/metropolitan-district-council/wolverhampton","SCREWFIX WOLVERHAM","9.98","Public Conveniences","5211","Materials","20/04/2018"
"Wolverhampton City Council","http://opendatacommunities.org/id/metropolitan-district-council/wolverhampton","Amazon EU","77.50","Strategic ICTS (ICT Serv Budget)","5969","Equipment - Purchase","20/04/2018"
"Wolverhampton City Council","http://opendatacommunities.org/id/metropolitan-district-council/wolverhampton","CURRYS S/S","169.99","Intensive Family Support Team","5732","Equipment - Purchase","20/04/2018"
"Wolverhampton City Council","http://opendatacommunities.org/id/metropolitan-district-council/wolverhampton","PREMIER INN","95.00","MASH","3811","Section 17","20/04/2018"
"Wolverhampton City Council","http://opendatacommunities.org/id/metropolitan-district-council/wolverhampton","Amazon UK Marketplace","21.98","EIP Locality 8","5942","Equipment - Hire","20/04/2018"
"Wolverhampton City Council","http://opendatacommunities.org/id/metropolitan-district-council/wolverhampton","000002200500000","100.00","Childrens with Disabilities Team","6011","Financial Assistance In Exceptional Circ","20/04/2018"
"Wolverhampton City Council","http://opendatacommunities.org/id/metropolitan-district-council/wolverhampton","000002200500000","240.00","Childrens with Disabilities Team","6011","No Recourse to Public Funds","20/04/2018"
"Wolverhampton City Council","http://opendatacommunities.org/id/metropolitan-district-council/wolverhampton","PAYPAL  THEROTA","170.28","Visitor Economy - Development","5735","Computing - Purchase of Software","20/04/2018"
"Wolverhampton City Council","http://opendatacommunities.org/id/metropolitan-district-council/wolverhampton","Amazon UK Marketplace","14.73","Towers Outdoor Education Centre","5942","Fixtures and Fittings - Purchases","20/04/2018"
"Wolverhampton City Council","http://opendatacommunities.org/id/metropolitan-district-council/wolverhampton","Virgin Trains","182.00","Delivery & OCE Development","4112","Public Transport","20/04/2018"
"Wolverhampton City Council","http://opendatacommunities.org/id/metropolitan-district-council/wolverhampton","HOTELS.COM147339216022","251.62","Delivery & OCE Development","4722","Public Transport","20/04/2018"
"Wolverhampton City Council","http://opendatacommunities.org/id/metropolitan-district-council/wolverhampton","WM MORRISON 024","8.00","Adoption and Residence Team & Allowances","5411","Provisions (Not for resale)","20/04/2018"
"Wolverhampton City Council","http://opendatacommunities.org/id/metropolitan-district-council/wolverhampton","HOTEL RESTAURACJA BROV","8.00","GEN Y City Transnational","5812","Educ Trips, Holidays, Outings, Activity","20/04/2018"
"Wolverhampton City Council","http://opendatacommunities.org/id/metropolitan-district-council/wolverhampton","CORPORATE MEDIA SUPPLI","36.00","Communications & Marketing - General","5947","Equipment - Purchase","20/04/2018"
"Wolverhampton City Council","http://opendatacommunities.org/id/metropolitan-district-council/wolverhampton","WELSH CANOE ASSOC","77.00","Towers Outdoor Education Centre","5941","Equipment - Purchase","19/04/2018"
"Wolverhampton City Council","http://opendatacommunities.org/id/metropolitan-district-council/wolverhampton","Amazon UK Marketplace","29.87","Towers Outdoor Education Centre","5942","Fixtures and Fittings - Purchases","19/04/2018"
"Wolverhampton City Council","http://opendatacommunities.org/id/metropolitan-district-council/wolverhampton","SPAR SIOP TANDDERWEN","244.02","Towers Outdoor Education Centre","5411","Provisions (Not for resale)","19/04/2018"
"Wolverhampton City Council","http://opendatacommunities.org/id/metropolitan-district-council/wolverhampton","Amazon UK Marketplace","5.58","Towers Outdoor Education Centre","5942","Fixtures and Fittings - Purchases","19/04/2018"
"Wolverhampton City Council","http://opendatacommunities.org/id/metropolitan-district-council/wolverhampton","WM MORRISON 024","2.49","Fostering Team & Allowances","5411","Provisions (Not for resale)","19/04/2018"
"Wolverhampton City Council","http://opendatacommunities.org/id/metropolitan-district-council/wolverhampton","Trainline","158.58","Mental Health Assessment & Care Mgmt","4112","Public Transport","19/04/2018"
"Wolverhampton City Council","http://opendatacommunities.org/id/metropolitan-district-council/wolverhampton","ACYBA","42.72","Admin & Support","7372","Computing - Purchase of Software","19/04/2018"
"Wolverhampton City Council","http://opendatacommunities.org/id/metropolitan-district-council/wolverhampton","ARGOS LTD","62.88","Cemeteries","5310","Equipment - Purchase","19/04/2018"
"Wolverhampton City Council","http://opendatacommunities.org/id/metropolitan-district-council/wolverhampton","Virgin Trains","103.10","Adoption and Residence Team & Allowances","4112","Public Transport","19/04/2018"
"Wolverhampton City Council","http://opendatacommunities.org/id/metropolitan-district-council/wolverhampton","GRO HM PASSPORT OFFICE","55.50","Adoption and Residence Team & Allowances","9399","Services - Fees and Charges","19/04/2018"
"Wolverhampton City Council","http://opendatacommunities.org/id/metropolitan-district-council/wolverhampton","Amazon UK Marketplace","11.64","Strategic ICTS (ICT Serv Budget)","5942","Books","19/04/2018"
"Wolverhampton City Council","http://opendatacommunities.org/id/metropolitan-district-council/wolverhampton","ASDA GROCERIES ONLINE","-9.47","Upper Pendeford Farm Childrens Home","5411","Provisions (Not for resale)","19/04/2018"
"Wolverhampton City Council","http://opendatacommunities.org/id/metropolitan-district-council/wolverhampton","SNICKERSDIRECT","112.92","Statutory Services (10RM)","5611","Equipment - Purchase","19/04/2018"
"Wolverhampton City Council","http://opendatacommunities.org/id/metropolitan-district-council/wolverhampton","WWW.SEVERNTRENTSEARCHE","335.00","Disposal Costs","4900","Services - Professional Fees","19/04/2018"
"Wolverhampton City Council","http://opendatacommunities.org/id/metropolitan-district-council/wolverhampton","WWW.SEVERNTRENTSEARCHE","335.00","Disposal Costs","4900","Services - Professional Fees","19/04/2018"
"Wolverhampton City Council","http://opendatacommunities.org/id/metropolitan-district-council/wolverhampton","J VAN VLIET BIRMINGHAM","91.40","Creative Studies Delivery Area","5399","Materials for resale","19/04/2018"
"Wolverhampton City Council","http://opendatacommunities.org/id/metropolitan-district-council/wolverhampton","Trainline","52.50","CIN/CP Social Work Unit - Area 4","4112","Section 17","19/04/2018"
"Wolverhampton City Council","http://opendatacommunities.org/id/metropolitan-district-council/wolverhampton","TIMPSON LTD","9.00","Strategic ICTS (ICT Serv Budget)","7251","Fixtures and Fittings - R&M","19/04/2018"
"Wolverhampton City Council","http://opendatacommunities.org/id/metropolitan-district-council/wolverhampton","WWW.UKPACKAGING.COM","58.85","Technical Material","5111","Materials","19/04/2018"
"Wolverhampton City Council","http://opendatacommunities.org/id/metropolitan-district-council/wolverhampton","WWW.NISBETS.COM","63.00","Mayoral Expenses","5964","Equipment - Purchase","19/04/2018"
"Wolverhampton City Council","http://opendatacommunities.org/id/metropolitan-district-council/wolverhampton","Amazon UK Marketplace","11.99","EIP Locality 8","5942","Equipment - Hire","19/04/2018"
"Wolverhampton City Council","http://opendatacommunities.org/id/metropolitan-district-council/wolverhampton","000002200500000","250.00","CIN/CP Social Work Unit - Area 6","6011","Financial Assistance In Exceptional Circ","19/04/2018"
"Wolverhampton City Council","http://opendatacommunities.org/id/metropolitan-district-council/wolverhampton","INSTANTA LTD","104.62","Art Gallery Tea Room","5085","Equipment - R & M","19/04/2018"
"Wolverhampton City Council","http://opendatacommunities.org/id/metropolitan-district-council/wolverhampton","POST OFFICE COUNTER","265.50","Adoption and Residence Team & Allowances","9402","Comms - Postage","19/04/2018"
"Wolverhampton City Council","http://opendatacommunities.org/id/metropolitan-district-council/wolverhampton","O E METCALFE","354.06","Towers Outdoor Education Centre","5499","Provisions (Not for resale)","19/04/2018"
"Wolverhampton City Council","http://opendatacommunities.org/id/metropolitan-district-council/wolverhampton","ASDA GROCERIES ONLINE","355.95","Upper Pendeford Farm Childrens Home","5411","Provisions (Not for resale)","19/04/2018"
"Wolverhampton City Council","http://opendatacommunities.org/id/metropolitan-district-council/wolverhampton","WAYFAIR STORES LIM","150.98","EIP Locality 5","5965","Grant Payments","19/04/2018"
"Wolverhampton City Council","http://opendatacommunities.org/id/metropolitan-district-council/wolverhampton","Amazon UK Marketplace","18.11","EIP Locality 5","5942","Provisions (Not for resale)","19/04/2018"
"Wolverhampton City Council","http://opendatacommunities.org/id/metropolitan-district-council/wolverhampton","BRITANNIA WOLVERHA","-72.00","MASH","7011","Section 17","19/04/2018"
"Wolverhampton City Council","http://opendatacommunities.org/id/metropolitan-district-council/wolverhampton","ARRIVA TRAINS WALE","30.30","Research & Development","4112","Public Transport","19/04/2018"
"Wolverhampton City Council","http://opendatacommunities.org/id/metropolitan-district-council/wolverhampton","Trainline","74.80","Director of Education","4112","Public Transport","19/04/2018"
"Wolverhampton City Council","http://opendatacommunities.org/id/metropolitan-district-council/wolverhampton","DRI Nuance","26.01","EIP Locality 1","5734","Computing - Purchase of Software","19/04/2018"
"Wolverhampton City Council","http://opendatacommunities.org/id/metropolitan-district-council/wolverhampton","WM MORRISON 024","16.08","CIN/CP Social Work Unit - Area 2","5411","Comms - Postage","19/04/2018"
"Wolverhampton City Council","http://opendatacommunities.org/id/metropolitan-district-council/wolverhampton","SCREWFIX DIRECT LT","83.25","Parkfields Centre","5211","R&M - Departmental planned (external)","19/04/2018"
"Wolverhampton City Council","http://opendatacommunities.org/id/metropolitan-district-council/wolverhampton","TESCO STORES 5397","2.00","EIP Locality 1","5411","Provisions (Not for resale)","19/04/2018"
"Wolverhampton City Council","http://opendatacommunities.org/id/metropolitan-district-council/wolverhampton","GO CARZ","168.60","MASH","4121","Client Transport","19/04/2018"
"Wolverhampton City Council","http://opendatacommunities.org/id/metropolitan-district-council/wolverhampton","GO CARZ","53.20","MASH","4121","Client Transport","19/04/2018"
"Wolverhampton City Council","http://opendatacommunities.org/id/metropolitan-district-council/wolverhampton","WOLVERHAMPTON TO","23.40","Children & Young People Support Costs","4112","Public Transport","19/04/2018"
"Wolverhampton City Council","http://opendatacommunities.org/id/metropolitan-district-council/wolverhampton","WIX.COM","93.13","Technical Support","5817","Computing - Purchase of Software","19/04/2018"
"Wolverhampton City Council","http://opendatacommunities.org/id/metropolitan-district-council/wolverhampton","Amazon UK Marketplace","7.99","Technical Support","5942","Computing - Purchase of Hardware","19/04/2018"
"Wolverhampton City Council","http://opendatacommunities.org/id/metropolitan-district-council/wolverhampton","Amazon UK Marketplace","8.39","Global Budgets","5942","Books","19/04/2018"
"Wolverhampton City Council","http://opendatacommunities.org/id/metropolitan-district-council/wolverhampton","B & Q 1243","9.98","Specialist Support Service - North","5211","Equipment - R & M","19/04/2018"
"Wolverhampton City Council","http://opendatacommunities.org/id/metropolitan-district-council/wolverhampton","WWW.ARGOS.CO.UK","153.27","Environmental Health - Pub Prot - Gen","5310","Equipment - Purchase","19/04/2018"
"Wolverhampton City Council","http://opendatacommunities.org/id/metropolitan-district-council/wolverhampton","Amazon UK Marketplace","37.99","Environmental Health - Pub Prot - Gen","5942","Equipment - Purchase","19/04/2018"
"Wolverhampton City Council","http://opendatacommunities.org/id/metropolitan-district-council/wolverhampton","Virgin Trains","163.20","Environmental Health - Pub Prot - Gen","4112","Services - Fees and Charges","19/04/2018"
"Wolverhampton City Council","http://opendatacommunities.org/id/metropolitan-district-council/wolverhampton","Amazon UK Marketplace","31.44","Environmental Health - Pub Prot - Gen","5942","Equipment - Purchase","19/04/2018"
"Wolverhampton City Council","http://opendatacommunities.org/id/metropolitan-district-council/wolverhampton","Amazon UK Marketplace","13.74","Environmental Health - Pub Prot - Gen","5942","Equipment - Purchase","19/04/2018"
"Wolverhampton City Council","http://opendatacommunities.org/id/metropolitan-district-council/wolverhampton","Amazon UK Marketplace","10.62","Environmental Health - Pub Prot - Gen","5942","Equipment - Purchase","19/04/2018"
"Wolverhampton City Council","http://opendatacommunities.org/id/metropolitan-district-council/wolverhampton","WOLVES CC","10.00","Duke Street Bungalows","9399","Parking Fees","19/04/2018"
"Wolverhampton City Council","http://opendatacommunities.org/id/metropolitan-district-council/wolverhampton","E00236700000000","251.85","Headstart - Young People Engagement","6011","Financial Assistance In Exceptional Circ","18/04/2018"
"Wolverhampton City Council","http://opendatacommunities.org/id/metropolitan-district-council/wolverhampton","Virgin Trains","107.80","Corporate Procurement Unit","4112","Public Transport","18/04/2018"
"Wolverhampton City Council","http://opendatacommunities.org/id/metropolitan-district-council/wolverhampton","WWW.MEMBERS.LANDSCAPEI","84.00","Corporate Procurement Unit","0780","R&M - Departmental response (external)","18/04/2018"
"Wolverhampton City Council","http://opendatacommunities.org/id/metropolitan-district-council/wolverhampton","REDACTIVE","320.00","Strategic Financial Services","7399","Accommodation Costs","18/04/2018"
"Wolverhampton City Council","http://opendatacommunities.org/id/metropolitan-district-council/wolverhampton","BRITANNIA WOLVERHA","108.00","MASH","7011","Section 17","18/04/2018"
"Wolverhampton City Council","http://opendatacommunities.org/id/metropolitan-district-council/wolverhampton","Trainline","37.70","MASH","4112","Section 17","18/04/2018"
"Wolverhampton City Council","http://opendatacommunities.org/id/metropolitan-district-council/wolverhampton","ASDA SUPERSTORE","31.00","LAC Transitions Team","5411","Provisions (Not for resale)","18/04/2018"
"Wolverhampton City Council","http://opendatacommunities.org/id/metropolitan-district-council/wolverhampton","IKEA LIMITED","17.08","LAC Transitions Team","5712","Client Allowances","18/04/2018"
"Wolverhampton City Council","http://opendatacommunities.org/id/metropolitan-district-council/wolverhampton","Trainline","75.50","Community Pathways","4112","Public Transport","18/04/2018"
"Wolverhampton City Council","http://opendatacommunities.org/id/metropolitan-district-council/wolverhampton","Amazon UK Marketplace","10.80","Global Budgets","5942","Books","18/04/2018"
"Wolverhampton City Council","http://opendatacommunities.org/id/metropolitan-district-council/wolverhampton","ASDA GROCERIES ONLINE","70.24","Ernest Bold Court","5411","Provisions (Not for resale)","18/04/2018"
"Wolverhampton City Council","http://opendatacommunities.org/id/metropolitan-district-council/wolverhampton","RICARDO-AEA LTD","50.00","Environmental Health - Pub Prot - Gen","7392","Training Expenses","18/04/2018"
"Wolverhampton City Council","http://opendatacommunities.org/id/metropolitan-district-council/wolverhampton","Amazon UK Marketplace","18.59","Environmental Health - Pub Prot - Gen","5942","Equipment - Purchase","18/04/2018"
"Wolverhampton City Council","http://opendatacommunities.org/id/metropolitan-district-council/wolverhampton","Amazon UK Marketplace","114.37","Environmental Health - Pub Prot - Gen","5942","Equipment - Purchase","18/04/2018"
"Wolverhampton City Council","http://opendatacommunities.org/id/metropolitan-district-council/wolverhampton","WWW.WMCA.CO.UK","99.00","CIN/CP Social Work Unit - Area 4","9399","No Recourse to Public Funds","18/04/2018"
"Wolverhampton City Council","http://opendatacommunities.org/id/metropolitan-district-council/wolverhampton","BRADLEY ENVIRONMENTAL","158.33","Statutory Services (10RM)","7392","Services - Consultants","18/04/2018"
"Wolverhampton City Council","http://opendatacommunities.org/id/metropolitan-district-council/wolverhampton","CLARION EVENTS LIMITED","250.00","Central Training","7399","Training Expenses","18/04/2018"
"Wolverhampton City Council","http://opendatacommunities.org/id/metropolitan-district-council/wolverhampton","THE COAL AUTHORITY","285.47","Disposal Costs","9399","Services - Professional Fees","18/04/2018"
"Wolverhampton City Council","http://opendatacommunities.org/id/metropolitan-district-council/wolverhampton","J VAN VLIET BIRMINGHAM","87.64","Creative Studies Delivery Area","5399","Materials","18/04/2018"
"Wolverhampton City Council","http://opendatacommunities.org/id/metropolitan-district-council/wolverhampton","J VAN VLIET BIRMINGHAM","97.08","Creative Studies Delivery Area","5399","Materials for resale","18/04/2018"
"Wolverhampton City Council","http://opendatacommunities.org/id/metropolitan-district-council/wolverhampton","J VAN VLIET BIRMINGHAM","56.50","Creative Studies Delivery Area","5399","Materials","18/04/2018"
"Wolverhampton City Council","http://opendatacommunities.org/id/metropolitan-district-council/wolverhampton","J VAN VLIET BIRMINGHAM","29.90","Creative Studies Delivery Area","5399","Materials","18/04/2018"
"Wolverhampton City Council","http://opendatacommunities.org/id/metropolitan-district-council/wolverhampton","ASDA SUPERSTORE","11.50","CIN/CP Social Work Unit - Area 5","5411","Section 17","18/04/2018"
"Wolverhampton City Council","http://opendatacommunities.org/id/metropolitan-district-council/wolverhampton","Trainline","20.65","CIN/CP Social Work Unit - Area 8","4112","Public Transport","18/04/2018"
"Wolverhampton City Council","http://opendatacommunities.org/id/metropolitan-district-council/wolverhampton","REDACTIVE","320.00","Members Expenses","7399","Accommodation Costs","18/04/2018"
"Wolverhampton City Council","http://opendatacommunities.org/id/metropolitan-district-council/wolverhampton","000002200500000","70.00","Head of Service Specialist Int Support","6011","Direct Work With Children","18/04/2018"
"Wolverhampton City Council","http://opendatacommunities.org/id/metropolitan-district-council/wolverhampton","CAPITAL CLEANING (","50.77","Art Gallery","7349","Cleaning Supplies and Materials","18/04/2018"
"Wolverhampton City Council","http://opendatacommunities.org/id/metropolitan-district-council/wolverhampton","WOOD FINISHES DIRECT L","50.82","Art Gallery","5198","Cleaning Supplies and Materials","18/04/2018"
"Wolverhampton City Council","http://opendatacommunities.org/id/metropolitan-district-council/wolverhampton","EB  DIGITAL TECHNOLOGI","11.67","Research & Development","7399","Training Expenses","18/04/2018"
"Wolverhampton City Council","http://opendatacommunities.org/id/metropolitan-district-council/wolverhampton","WWW.ARGOS.CO.UK","186.94","Childrens with Disabilities Team","5310","Section 17","18/04/2018"
"Wolverhampton City Council","http://opendatacommunities.org/id/metropolitan-district-council/wolverhampton","Amazon UK Marketplace","30.51","Civic Events","5942","Equipment - Purchase","18/04/2018"
"Wolverhampton City Council","http://opendatacommunities.org/id/metropolitan-district-council/wolverhampton","Amazon UK Marketplace","91.53","Civic Events","5942","Equipment - Purchase","18/04/2018"
"Wolverhampton City Council","http://opendatacommunities.org/id/metropolitan-district-council/wolverhampton","STALBRIDGE LINEN S","767.00","Towers Outdoor Education Centre","7216","Equipment - R & M","18/04/2018"
"Wolverhampton City Council","http://opendatacommunities.org/id/metropolitan-district-council/wolverhampton","HARRIS AND HOOLE  STAN","5.35","GEN Y City Transnational","5812","Educ Trips, Holidays, Outings, Activity","18/04/2018"
"Wolverhampton City Council","http://opendatacommunities.org/id/metropolitan-district-council/wolverhampton","MENNICA AUTOMAT 947","0.99","GEN Y City Transnational","4111","Public Transport","18/04/2018"
"Wolverhampton City Council","http://opendatacommunities.org/id/metropolitan-district-council/wolverhampton","RYANAIR","6.00","GEN Y City Transnational","3246","Public Transport","18/04/2018"
"Wolverhampton City Council","http://opendatacommunities.org/id/metropolitan-district-council/wolverhampton","ASDA SUPERSTORE","16.00","LAC Transitions Team","5411","Independant Living Allowance","17/04/2018"
"Wolverhampton City Council","http://opendatacommunities.org/id/metropolitan-district-council/wolverhampton","Amazon UK Marketplace","37.38","Civic Events","5942","Equipment - Purchase","17/04/2018"
"Wolverhampton City Council","http://opendatacommunities.org/id/metropolitan-district-council/wolverhampton","Amazon UK Marketplace","109.58","Outdoor Events Admin","5942","Equipment - Purchase","17/04/2018"
"Wolverhampton City Council","http://opendatacommunities.org/id/metropolitan-district-council/wolverhampton","Amazon UK Marketplace","14.10","St Georges Day","5942","Equipment - Purchase","17/04/2018"
"Wolverhampton City Council","http://opendatacommunities.org/id/metropolitan-district-council/wolverhampton","CORAM ACADEMY LTD","42.25","Adoption and Residence Team & Allowances","8398","Services - Supplies & Services to users","17/04/2018"
"Wolverhampton City Council","http://opendatacommunities.org/id/metropolitan-district-council/wolverhampton","WEDNESFIELD RADIO CARS","114.50","Civic Events","4121","Client Transport","17/04/2018"
"Wolverhampton City Council","http://opendatacommunities.org/id/metropolitan-district-council/wolverhampton","Trainline","70.40","Research & Development","4112","Public Transport","17/04/2018"
"Wolverhampton City Council","http://opendatacommunities.org/id/metropolitan-district-council/wolverhampton","VWO.com","42.69","City Direct","7372","Computing - Purchase of Software","17/04/2018"
"Wolverhampton City Council","http://opendatacommunities.org/id/metropolitan-district-council/wolverhampton","UNTOUCHABLES","12.79","Cemeteries","5231","Materials","17/04/2018"
"Wolverhampton City Council","http://opendatacommunities.org/id/metropolitan-district-council/wolverhampton","WWW.MDNSUPPLIES.CO.UK","27.58","Business Manager - Place","5085","Equipment - Purchase","17/04/2018"
"Wolverhampton City Council","http://opendatacommunities.org/id/metropolitan-district-council/wolverhampton","ASDA SUPERSTORE","13.33","EIP Locality 5","5411","Provisions (Not for resale)","17/04/2018"
"Wolverhampton City Council","http://opendatacommunities.org/id/metropolitan-district-council/wolverhampton","WWW.VALENTINECLAYS.CO.","75.46","Creative Studies Delivery Area","5945","Equipment - Purchase","17/04/2018"
"Wolverhampton City Council","http://opendatacommunities.org/id/metropolitan-district-council/wolverhampton","BRITANNIA","36.00","MASH","7011","Section 17","17/04/2018"
"Wolverhampton City Council","http://opendatacommunities.org/id/metropolitan-district-council/wolverhampton","WWW.PMGLTD.CO.UK","395.00","Director of Education","7399","Equipment - Purchase","17/04/2018"
"Wolverhampton City Council","http://opendatacommunities.org/id/metropolitan-district-council/wolverhampton","DIRECT CARPETS","229.17","EIP Locality 1","5713","Equipment - Purchase","17/04/2018"
"Wolverhampton City Council","http://opendatacommunities.org/id/metropolitan-district-council/wolverhampton","WWW.GOV.UK","10.00","Private Sector Housing","8999","Services - Professional Fees","17/04/2018"
"Wolverhampton City Council","http://opendatacommunities.org/id/metropolitan-district-council/wolverhampton","SAINSBURYS","250.00","Duke Street Bungalows","6011","Provisions (Not for resale)","17/04/2018"
"Wolverhampton City Council","http://opendatacommunities.org/id/metropolitan-district-council/wolverhampton","SAINSBURYS 2040","9.30","Duke Street Bungalows","5411","Provisions (Not for resale)","17/04/2018"
"Wolverhampton City Council","http://opendatacommunities.org/id/metropolitan-district-council/wolverhampton","MAPLIN WOLVERHAMPT WV2","29.16","Civic Centre","4812","Equipment - Purchase","17/04/2018"
"Wolverhampton City Council","http://opendatacommunities.org/id/metropolitan-district-council/wolverhampton","SKDC INTERNET","85.00","Central Training","9399","Training Expenses","17/04/2018"
"Wolverhampton City Council","http://opendatacommunities.org/id/metropolitan-district-council/wolverhampton","Amazon UK Marketplace","28.35","Children & Family Contact Services","5942","Equipment - Purchase","17/04/2018"
"Wolverhampton City Council","http://opendatacommunities.org/id/metropolitan-district-council/wolverhampton","REGISTRARS OFFICE","11.00","CIN/CP Social Work Unit - Area 5","8299","Section 17","17/04/2018"
"Wolverhampton City Council","http://opendatacommunities.org/id/metropolitan-district-council/wolverhampton","Trainline","24.60","CIN/CP Social Work Unit - Area 8","4112","Section 17","17/04/2018"
"Wolverhampton City Council","http://opendatacommunities.org/id/metropolitan-district-council/wolverhampton","WEST MID TRAVEL","446.90","Community Enablement","4131","Public Transport","16/04/2018"
"Wolverhampton City Council","http://opendatacommunities.org/id/metropolitan-district-council/wolverhampton","WEST MID TRAVEL","236.90","Specialist Support Service - North","4131","Public Transport","16/04/2018"
"Wolverhampton City Council","http://opendatacommunities.org/id/metropolitan-district-council/wolverhampton","SURVEYMONKEY.COM","280.00","Learning Technologies","5968","Subscriptions","16/04/2018"
"Wolverhampton City Council","http://opendatacommunities.org/id/metropolitan-district-council/wolverhampton","ASDA GROCERIES ONLINE","58.47","Ernest Bold Court","5411","Provisions (Not for resale)","16/04/2018"
"Wolverhampton City Council","http://opendatacommunities.org/id/metropolitan-district-council/wolverhampton","RICS COM GBP CYBS","150.00","Central Training","8699","Training Expenses","16/04/2018"
"Wolverhampton City Council","http://opendatacommunities.org/id/metropolitan-district-council/wolverhampton","REGISTRARS OFFICE","27.00","Head of Service - CINCP","8299","Services - Professional Fees","16/04/2018"
"Wolverhampton City Council","http://opendatacommunities.org/id/metropolitan-district-council/wolverhampton","ALBRIGHTON FEEDS LIMIT","112.40","Parks - Ranger Service","5995","Materials","16/04/2018"
"Wolverhampton City Council","http://opendatacommunities.org/id/metropolitan-district-council/wolverhampton","WWW.ICO.GOV.UK","35.00","Members Expenses","9399","Subscriptions","16/04/2018"
"Wolverhampton City Council","http://opendatacommunities.org/id/metropolitan-district-council/wolverhampton","WWW.ICO.GOV.UK","35.00","Members Expenses","9399","Subscriptions","16/04/2018"
"Wolverhampton City Council","http://opendatacommunities.org/id/metropolitan-district-council/wolverhampton","WWW.ICO.GOV.UK","35.00","Members Expenses","9399","Subscriptions","16/04/2018"
"Wolverhampton City Council","http://opendatacommunities.org/id/metropolitan-district-council/wolverhampton","WWW.ICO.GOV.UK","35.00","Members Expenses","9399","Subscriptions","16/04/2018"
"Wolverhampton City Council","http://opendatacommunities.org/id/metropolitan-district-council/wolverhampton","WWW.ICO.GOV.UK","35.00","Members Expenses","9399","Subscriptions","16/04/2018"
"Wolverhampton City Council","http://opendatacommunities.org/id/metropolitan-district-council/wolverhampton","WWW.ICO.GOV.UK","35.00","Members Expenses","9399","Subscriptions","16/04/2018"
"Wolverhampton City Council","http://opendatacommunities.org/id/metropolitan-district-council/wolverhampton","WWW.ICO.GOV.UK","35.00","Members Expenses","9399","Subscriptions","16/04/2018"
"Wolverhampton City Council","http://opendatacommunities.org/id/metropolitan-district-council/wolverhampton","WWW.ICO.GOV.UK","35.00","Members Expenses","9399","Subscriptions","16/04/2018"
"Wolverhampton City Council","http://opendatacommunities.org/id/metropolitan-district-council/wolverhampton","WWW.ICO.GOV.UK","35.00","Members Expenses","9399","Subscriptions","16/04/2018"
"Wolverhampton City Council","http://opendatacommunities.org/id/metropolitan-district-council/wolverhampton","WWW.ICO.GOV.UK","35.00","Members Expenses","9399","Subscriptions","16/04/2018"
"Wolverhampton City Council","http://opendatacommunities.org/id/metropolitan-district-council/wolverhampton","WWW.SURE-GREEN.COM","21.55","Northicote Farm","5261","Equipment - R & M","16/04/2018"
"Wolverhampton City Council","http://opendatacommunities.org/id/metropolitan-district-council/wolverhampton","ASDA STORES 4452","47.53","EIP Locality 1","5411","Grant Payments","16/04/2018"
"Wolverhampton City Council","http://opendatacommunities.org/id/metropolitan-district-council/wolverhampton","WWW.PRESERVATIONEQUIPM","187.55","Technician","4225","R4007","16/04/2018"
"Wolverhampton City Council","http://opendatacommunities.org/id/metropolitan-district-council/wolverhampton","EB  DIGITAL TECHNOLOGI","11.67","Technician","7399","Training Expenses","16/04/2018"
"Wolverhampton City Council","http://opendatacommunities.org/id/metropolitan-district-council/wolverhampton","Trainline","20.65","Safeguarding Admin Resource","4112","Public Transport","16/04/2018"
"Wolverhampton City Council","http://opendatacommunities.org/id/metropolitan-district-council/wolverhampton","TESCO STORES 5194","-7.60","Towers Outdoor Education Centre","5411","Provisions (Not for resale)","16/04/2018"
"Wolverhampton City Council","http://opendatacommunities.org/id/metropolitan-district-council/wolverhampton","Virgin Trains","122.90","Graduate Trainees","4112","Public Transport","16/04/2018"
"Wolverhampton City Council","http://opendatacommunities.org/id/metropolitan-district-council/wolverhampton","P.F. CUSACK TOOL SUPPL","42.00","Electoral Registration","5211","Materials","16/04/2018"
"Wolverhampton City Council","http://opendatacommunities.org/id/metropolitan-district-council/wolverhampton","SHROPSHIRESTAR.COM","66.00","Communications & Marketing - General","5994","Books","16/04/2018"
"Wolverhampton City Council","http://opendatacommunities.org/id/metropolitan-district-council/wolverhampton","Amazon","6.66","Headstart - Young People Engagement","5968","Subscriptions","16/04/2018"
"Wolverhampton City Council","http://opendatacommunities.org/id/metropolitan-district-council/wolverhampton","CITB","25.00","IMPACT","8220","Training Expenses","16/04/2018"
"Wolverhampton City Council","http://opendatacommunities.org/id/metropolitan-district-council/wolverhampton","Trainline","-45.60","Admin & Support","4112","Public Transport","16/04/2018"
"Wolverhampton City Council","http://opendatacommunities.org/id/metropolitan-district-council/wolverhampton","Amazon UK Marketplace","7.49","City Direct","5942","Books","16/04/2018"
"Wolverhampton City Council","http://opendatacommunities.org/id/metropolitan-district-council/wolverhampton","ITUNES.COM/BILL","2.07","LAC Education Team (LACE)","5735","Computing - Purchase of Software","16/04/2018"
"Wolverhampton City Council","http://opendatacommunities.org/id/metropolitan-district-council/wolverhampton","JOHNSONS","9.33","Cemeteries","7210","Equipment - R & M","16/04/2018"
"Wolverhampton City Council","http://opendatacommunities.org/id/metropolitan-district-council/wolverhampton","HALFORDS 0448","50.00","Adoption and Residence Team & Allowances","5940","Equipment - Purchase","16/04/2018"
"Wolverhampton City Council","http://opendatacommunities.org/id/metropolitan-district-council/wolverhampton","Trainline","167.80","Service Director City Environment","4112","Public Transport","16/04/2018"
"Wolverhampton City Council","http://opendatacommunities.org/id/metropolitan-district-council/wolverhampton","POUNDWORLD RETAIL","4.00","Intensive Family Support Team","5310","Equipment - Purchase","16/04/2018"
"Wolverhampton City Council","http://opendatacommunities.org/id/metropolitan-district-council/wolverhampton","ASDA GROCERIES ONLINE","3.00","Upper Pendeford Farm Childrens Home","5411","Provisions (Not for resale)","16/04/2018"
"Wolverhampton City Council","http://opendatacommunities.org/id/metropolitan-district-council/wolverhampton","SCREWFIX DIRECT","205.58","Service Wide","5211","Equipment - Purchase","16/04/2018"
"Wolverhampton City Council","http://opendatacommunities.org/id/metropolitan-district-council/wolverhampton","Amazon UK Marketplace","17.48","EIP Locality 1","5942","Books","16/04/2018"
"Wolverhampton City Council","http://opendatacommunities.org/id/metropolitan-district-council/wolverhampton","REGISTRARS OFFICE","11.00","CIN/CP Social Work Unit - Area 2","8299","Section 17","16/04/2018"
"Wolverhampton City Council","http://opendatacommunities.org/id/metropolitan-district-council/wolverhampton","TESCO STORES 5397","20.00","EIP Locality 1","5411","Grant Payments","16/04/2018"
"Wolverhampton City Council","http://opendatacommunities.org/id/metropolitan-district-council/wolverhampton","000002200500000","100.00","Childrens with Disabilities Team","6011","Financial Assistance In Exceptional Circ","13/04/2018"
"Wolverhampton City Council","http://opendatacommunities.org/id/metropolitan-district-council/wolverhampton","000002200500000","240.00","Childrens with Disabilities Team","6011","Financial Assistance In Exceptional Circ","13/04/2018"
"Wolverhampton City Council","http://opendatacommunities.org/id/metropolitan-district-council/wolverhampton","000002200500000","240.00","CIN/CP Social Work Unit - Area 6","6011","No Recourse to Public Funds","13/04/2018"
"Wolverhampton City Council","http://opendatacommunities.org/id/metropolitan-district-council/wolverhampton","EE & T-MOBILE","83.28","Civic Halls Non Direct Management A/C","4814","Comms - Telephone Call charges","13/04/2018"
"Wolverhampton City Council","http://opendatacommunities.org/id/metropolitan-district-council/wolverhampton","TESCO STORES 5194","252.89","Towers Outdoor Education Centre","5411","Provisions (Not for resale)","13/04/2018"
"Wolverhampton City Council","http://opendatacommunities.org/id/metropolitan-district-council/wolverhampton","Amazon UK Marketplace","4.52","Towers Outdoor Education Centre","5942","Equipment - Purchase","13/04/2018"
"Wolverhampton City Council","http://opendatacommunities.org/id/metropolitan-district-council/wolverhampton","Amazon EU","19.15","Towers Outdoor Education Centre","5969","Equipment - Purchase","13/04/2018"
"Wolverhampton City Council","http://opendatacommunities.org/id/metropolitan-district-council/wolverhampton","WAITROSE 696","13.37","Mayoral Expenses","5411","Cleaning Supplies and Materials","13/04/2018"
"Wolverhampton City Council","http://opendatacommunities.org/id/metropolitan-district-council/wolverhampton","APPLE ONLINE STORE GBP","1063.33","City Direct","5732","Equipment - Purchase","13/04/2018"
"Wolverhampton City Council","http://opendatacommunities.org/id/metropolitan-district-council/wolverhampton","WWW.GIL-LEC.CO.UK","53.12","Technician","5065","R4007","13/04/2018"
"Wolverhampton City Council","http://opendatacommunities.org/id/metropolitan-district-council/wolverhampton","Amazon UK Marketplace","43.28","EIP Locality 3","5942","Books","13/04/2018"
"Wolverhampton City Council","http://opendatacommunities.org/id/metropolitan-district-council/wolverhampton","Amazon UK Marketplace","4.45","EIP Locality 3","5942","Equipment - Purchase","13/04/2018"
"Wolverhampton City Council","http://opendatacommunities.org/id/metropolitan-district-council/wolverhampton","PAYPAL  BARNARDOS","-50.00","EIP Locality 2","8999","Training Expenses","13/04/2018"
"Wolverhampton City Council","http://opendatacommunities.org/id/metropolitan-district-council/wolverhampton","HMCOURTS-SERVICE.G","62.50","Mental Health Assessment & Care Mgmt","9222","Services - Fees and Charges","13/04/2018"
"Wolverhampton City Council","http://opendatacommunities.org/id/metropolitan-district-council/wolverhampton","Amazon EU","8.33","Headstart - Young People Engagement","5969","Equipment - Purchase","13/04/2018"
"Wolverhampton City Council","http://opendatacommunities.org/id/metropolitan-district-council/wolverhampton","WOLVERHAMPTON CC","5.42","IMPACT","7523","Car Allowances","13/04/2018"
"Wolverhampton City Council","http://opendatacommunities.org/id/metropolitan-district-council/wolverhampton","Amazon UK Marketplace","13.30","Community Enablement","5942","Books","13/04/2018"
"Wolverhampton City Council","http://opendatacommunities.org/id/metropolitan-district-council/wolverhampton","WWW.CARESHOP.CO.UK","63.89","Ernest Bold Court","5999","Equipment - Purchase","13/04/2018"
"Wolverhampton City Council","http://opendatacommunities.org/id/metropolitan-district-council/wolverhampton","BOUNCEPAD","195.00","City Direct","5943","Stationery","13/04/2018"
"Wolverhampton City Council","http://opendatacommunities.org/id/metropolitan-district-council/wolverhampton","HI NEWCASTLE WASHI","72.00","Adoption and Residence Team & Allowances","7011","Accommodation Costs","13/04/2018"
"Wolverhampton City Council","http://opendatacommunities.org/id/metropolitan-district-council/wolverhampton","Amazon EU","34.98","Strategic ICTS (ICT Serv Budget)","5969","Equipment - Purchase","13/04/2018"
"Wolverhampton City Council","http://opendatacommunities.org/id/metropolitan-district-council/wolverhampton","Virgin Trains","13.60","Private Sector Housing","4112","Public Transport","13/04/2018"
"Wolverhampton City Council","http://opendatacommunities.org/id/metropolitan-district-council/wolverhampton","DRI Nuance","286.27","EIP Locality 1","5734","Computing - Purchase of Software","13/04/2018"
"Wolverhampton City Council","http://opendatacommunities.org/id/metropolitan-district-council/wolverhampton","GO CARZ","25.00","MASH","4121","No Recourse to Public Funds","13/04/2018"
"Wolverhampton City Council","http://opendatacommunities.org/id/metropolitan-district-council/wolverhampton","E01510300000000","200.00","MASH","6011","No Recourse to Public Funds","13/04/2018"
"Wolverhampton City Council","http://opendatacommunities.org/id/metropolitan-district-council/wolverhampton","1&1 INTERNET LIMITED","16.10","Learning Technologies","4816","Computing - Purchase of Software","13/04/2018"
"Wolverhampton City Council","http://opendatacommunities.org/id/metropolitan-district-council/wolverhampton","EB  NACHURAL SUMMER BU","1211.94","Service Director City Assets","7399","Equipment - Purchase","13/04/2018"
"Wolverhampton City Council","http://opendatacommunities.org/id/metropolitan-district-council/wolverhampton","EB  NACHURAL SUMMER BU","496.56","Service Director City Assets","7399","Equipment - Purchase","13/04/2018"
"Wolverhampton City Council","http://opendatacommunities.org/id/metropolitan-district-council/wolverhampton","ALDI 94 772","36.83","Children & Family Contact Services","5411","Provisions (Not for resale)","13/04/2018"
"Wolverhampton City Council","http://opendatacommunities.org/id/metropolitan-district-council/wolverhampton","AA MEMBERSHIP R/T","180.71","Fleet Management","5968","Subscriptions","13/04/2018"
"Wolverhampton City Council","http://opendatacommunities.org/id/metropolitan-district-council/wolverhampton","ASDA SUPERSTORE","18.00","EIP Locality 5","5411","Grant Payments","13/04/2018"
"Wolverhampton City Council","http://opendatacommunities.org/id/metropolitan-district-council/wolverhampton","MONARCH CLEANERS LTD","419.82","Towers Outdoor Education Centre","7216","Laundry Expenses","12/04/2018"
"Wolverhampton City Council","http://opendatacommunities.org/id/metropolitan-district-council/wolverhampton","BATHROOMSTORE.CO","29.15","Towers Outdoor Education Centre","5211","Fixtures and Fittings - Purchases","12/04/2018"
"Wolverhampton City Council","http://opendatacommunities.org/id/metropolitan-district-council/wolverhampton","Amazon UK Marketplace","74.99","Towers Outdoor Education Centre","5942","Fixtures and Fittings - Purchases","12/04/2018"
"Wolverhampton City Council","http://opendatacommunities.org/id/metropolitan-district-council/wolverhampton","Virgin Trains","66.60","Audit Services","4112","Public Transport","12/04/2018"
"Wolverhampton City Council","http://opendatacommunities.org/id/metropolitan-district-council/wolverhampton","CHARITY","166.50","Fostering Team & Allowances","8398","Services - Supplies & Services to users","12/04/2018"
"Wolverhampton City Council","http://opendatacommunities.org/id/metropolitan-district-council/wolverhampton","GOOGLE  ADWS9680351324","352.29","Communications & Marketing - General","5968","Subscriptions","12/04/2018"
"Wolverhampton City Council","http://opendatacommunities.org/id/metropolitan-district-council/wolverhampton","HOVER","7.28","Headstart Phase 3","7372","Computing - Purchase of Software","12/04/2018"
"Wolverhampton City Council","http://opendatacommunities.org/id/metropolitan-district-council/wolverhampton","ASDA SUPERSTORE","100.00","CIN/CP Social Work Unit - Area 3","5411","No Recourse to Public Funds","12/04/2018"
"Wolverhampton City Council","http://opendatacommunities.org/id/metropolitan-district-council/wolverhampton","ASDA SUPERSTORE","100.00","CIN/CP Social Work Unit - Area 3","5411","Provisions (Not for resale)","12/04/2018"
"Wolverhampton City Council","http://opendatacommunities.org/id/metropolitan-district-council/wolverhampton","ASDA SUPERSTORE","200.00","CIN/CP Social Work Unit - Area 3","5411","No Recourse to Public Funds","12/04/2018"
"Wolverhampton City Council","http://opendatacommunities.org/id/metropolitan-district-council/wolverhampton","LOYD WEDNESFIELD WOLVE","40.00","EIP Locality 8","6011","Grant Payments","12/04/2018"
"Wolverhampton City Council","http://opendatacommunities.org/id/metropolitan-district-council/wolverhampton","HOME LEARNING","225.00","EIP Locality 2","8299","Training Expenses","12/04/2018"
"Wolverhampton City Council","http://opendatacommunities.org/id/metropolitan-district-council/wolverhampton","TESCO DELIVERY SAVER2","3.49","Towers Outdoor Education Centre","5968","Provisions (Not for resale)","12/04/2018"
"Wolverhampton City Council","http://opendatacommunities.org/id/metropolitan-district-council/wolverhampton","TFM FARM & COUNTRY SUP","180.04","Northicote Farm","5399","Equipment - R & M","12/04/2018"
"Wolverhampton City Council","http://opendatacommunities.org/id/metropolitan-district-council/wolverhampton","NEW LOOK 1817","69.01","IMPACT","5621","Equipment - Purchase","12/04/2018"
"Wolverhampton City Council","http://opendatacommunities.org/id/metropolitan-district-council/wolverhampton","WOLVERHAMPTON CC","10.42","IMPACT","7523","Car Allowances","12/04/2018"
"Wolverhampton City Council","http://opendatacommunities.org/id/metropolitan-district-council/wolverhampton","FOCUS 4 LEARNING LTD","60.00","IMPACT","5734","Computing - Purchase of Software","12/04/2018"
"Wolverhampton City Council","http://opendatacommunities.org/id/metropolitan-district-council/wolverhampton","Trainline","61.20","LAC Transitions Team","4112","Client Allowances","12/04/2018"
"Wolverhampton City Council","http://opendatacommunities.org/id/metropolitan-district-council/wolverhampton","B & Q 1243","28.33","Public Conveniences","5211","Materials","12/04/2018"
"Wolverhampton City Council","http://opendatacommunities.org/id/metropolitan-district-council/wolverhampton","Audible Ltd","7.99","Upper Pendeford Farm Childrens Home","5968","Subscriptions","12/04/2018"
"Wolverhampton City Council","http://opendatacommunities.org/id/metropolitan-district-council/wolverhampton","WAYFAIR STORES LIM","154.98","EIP Locality 5","5965","Grant Payments","12/04/2018"
"Wolverhampton City Council","http://opendatacommunities.org/id/metropolitan-district-council/wolverhampton","JONES SKIP HIRE (WOLVE","144.00","EIP Locality 5","5935","R5003","12/04/2018"
"Wolverhampton City Council","http://opendatacommunities.org/id/metropolitan-district-council/wolverhampton","Virgin Trains","116.60","Private Sector Housing","4112","Public Transport","12/04/2018"
"Wolverhampton City Council","http://opendatacommunities.org/id/metropolitan-district-council/wolverhampton","TESCO STORES 5397","5.27","EIP Locality 1","5411","Provisions (Not for resale)","12/04/2018"
"Wolverhampton City Council","http://opendatacommunities.org/id/metropolitan-district-council/wolverhampton","TEXTHELPLTD","180.00","EIP Locality 1","5734","Computing - Purchase of Software","12/04/2018"
"Wolverhampton City Council","http://opendatacommunities.org/id/metropolitan-district-council/wolverhampton","WWW.OAKLANDSWOLVERHAMP","35.00","MASH","7011","No Recourse to Public Funds","12/04/2018"
"Wolverhampton City Council","http://opendatacommunities.org/id/metropolitan-district-council/wolverhampton","SQUARESPACE INC.","139.96","Learning Technologies","7372","Computing - Purchase of Software","12/04/2018"
"Wolverhampton City Council","http://opendatacommunities.org/id/metropolitan-district-council/wolverhampton","NATIONAL EXPRESS LIMIT","57.75","LAC Team","4131","Financial Assistance In Exceptional Circ","12/04/2018"
"Wolverhampton City Council","http://opendatacommunities.org/id/metropolitan-district-council/wolverhampton","E.ON ENERGY SOLUTIONS","249.78","LAC Team","4900","Financial Assistance In Exceptional Circ","12/04/2018"
"Wolverhampton City Council","http://opendatacommunities.org/id/metropolitan-district-council/wolverhampton","POST OFFICE COUNTER","0.67","Head of Service - LAC","9402","Comms - Postage","12/04/2018"
"Wolverhampton City Council","http://opendatacommunities.org/id/metropolitan-district-council/wolverhampton","PAYPAL  ASSOCIATEEV","21.40","Economic Development","5969","Equipment - Purchase","12/04/2018"
"Wolverhampton City Council","http://opendatacommunities.org/id/metropolitan-district-council/wolverhampton","Amazon EU","35.32","Inclusion Support","5969","Equipment - Purchase","12/04/2018"
"Wolverhampton City Council","http://opendatacommunities.org/id/metropolitan-district-council/wolverhampton","ROYAL BK OF SCOTLAND","200.00","Duke Street Bungalows","6011","Provisions (Not for resale)","12/04/2018"
"Wolverhampton City Council","http://opendatacommunities.org/id/metropolitan-district-council/wolverhampton","ROYAL BK OF SCOTLAND","200.00","Duke Street Bungalows","6011","Provisions (Not for resale)","12/04/2018"
"Wolverhampton City Council","http://opendatacommunities.org/id/metropolitan-district-council/wolverhampton","TFM FARM & COUNTRY SUP","9.12","Northicote Farm","5399","Equipment - R & M","12/04/2018"
"Wolverhampton City Council","http://opendatacommunities.org/id/metropolitan-district-council/wolverhampton","TFM FARM & COUNTRY SUP","12.53","Northicote Farm","5399","Equipment - Purchase","12/04/2018"
"Wolverhampton City Council","http://opendatacommunities.org/id/metropolitan-district-council/wolverhampton","Amazon UK Marketplace","35.97","Strategic ICTS (ICT Serv Budget)","5942","Books","11/04/2018"
"Wolverhampton City Council","http://opendatacommunities.org/id/metropolitan-district-council/wolverhampton","WWW.ARGOS.CO.UK","251.56","EIP Locality 5","5310","Grant Payments","11/04/2018"
"Wolverhampton City Council","http://opendatacommunities.org/id/metropolitan-district-council/wolverhampton","Trainline","199.50","Director of Education","4112","Public Transport","11/04/2018"
"Wolverhampton City Council","http://opendatacommunities.org/id/metropolitan-district-council/wolverhampton","Trainline","47.00","School & Pupil Services","4112","Public Transport","11/04/2018"
"Wolverhampton City Council","http://opendatacommunities.org/id/metropolitan-district-council/wolverhampton","Amazon UK Marketplace","0.00","Children & Young People Support Costs","5942","Books","11/04/2018"
"Wolverhampton City Council","http://opendatacommunities.org/id/metropolitan-district-council/wolverhampton","FSPRG.UK","5.05","Technical Support","5818","Subscriptions","11/04/2018"
"Wolverhampton City Council","http://opendatacommunities.org/id/metropolitan-district-council/wolverhampton","E01577400000000","40.00","EIP Locality 3","6011","Educ Trips, Holidays, Outings, Activity","11/04/2018"
"Wolverhampton City Council","http://opendatacommunities.org/id/metropolitan-district-council/wolverhampton","WILKO RETAIL LIMIT","0.46","LAC Transitions Team","5722","Client Allowances","11/04/2018"
"Wolverhampton City Council","http://opendatacommunities.org/id/metropolitan-district-council/wolverhampton","WILKO RETAIL LIMIT","16.00","LAC Transitions Team","5722","Client Allowances","11/04/2018"
"Wolverhampton City Council","http://opendatacommunities.org/id/metropolitan-district-council/wolverhampton","WILKO RETAIL LIMIT","5.55","LAC Transitions Team","5722","Client Allowances","11/04/2018"
"Wolverhampton City Council","http://opendatacommunities.org/id/metropolitan-district-council/wolverhampton","ARGOS LTD","19.16","LAC Transitions Team","5310","Client Allowances","11/04/2018"
"Wolverhampton City Council","http://opendatacommunities.org/id/metropolitan-district-council/wolverhampton","ARGOS LTD","54.14","LAC Transitions Team","5310","Client Allowances","11/04/2018"
"Wolverhampton City Council","http://opendatacommunities.org/id/metropolitan-district-council/wolverhampton","BCC REGISTER OFFIC","17.85","Head of Service - CINCP","9399","Services - Professional Fees","11/04/2018"
"Wolverhampton City Council","http://opendatacommunities.org/id/metropolitan-district-council/wolverhampton","REGISTRARS OFFICE","20.00","Head of Service - CINCP","8299","Services - Professional Fees","11/04/2018"
"Wolverhampton City Council","http://opendatacommunities.org/id/metropolitan-district-council/wolverhampton","REGISTRARS OFFICE","60.00","Head of Service - CINCP","8299","Services - Professional Fees","11/04/2018"
"Wolverhampton City Council","http://opendatacommunities.org/id/metropolitan-district-council/wolverhampton","REGISTRARS OFFICE","21.00","Head of Service - CINCP","8299","Services - Professional Fees","11/04/2018"
"Wolverhampton City Council","http://opendatacommunities.org/id/metropolitan-district-council/wolverhampton","Trainline","42.00","CIN/CP Social Work Unit - Area 8","4112","Public Transport","11/04/2018"
"Wolverhampton City Council","http://opendatacommunities.org/id/metropolitan-district-council/wolverhampton","Trainline","102.60","CIN/CP Social Work Unit - Area 3","4112","Section 17","11/04/2018"
"Wolverhampton City Council","http://opendatacommunities.org/id/metropolitan-district-council/wolverhampton","BAKER ROSS LTD","12.47","Outdoor Events Admin","5970","Materials","11/04/2018"
"Wolverhampton City Council","http://opendatacommunities.org/id/metropolitan-district-council/wolverhampton","REGISTRARS OFFICE","21.00","Adoption and Residence Team & Allowances","8299","Services - Fees and Charges","11/04/2018"
"Wolverhampton City Council","http://opendatacommunities.org/id/metropolitan-district-council/wolverhampton","Virgin Trains","202.00","Fostering Team & Allowances","4112","Public Transport","11/04/2018"
"Wolverhampton City Council","http://opendatacommunities.org/id/metropolitan-district-council/wolverhampton","POST OFFICE COUNTER","201.00","Fostering Team & Allowances","9402","Comms - Postage","11/04/2018"
"Wolverhampton City Council","http://opendatacommunities.org/id/metropolitan-district-council/wolverhampton","CUMMINGS BROTHERS LOCK","50.00","Ground Maintenance East","7399","Equipment - Purchase","11/04/2018"
"Wolverhampton City Council","http://opendatacommunities.org/id/metropolitan-district-council/wolverhampton","A.B.C. COUNTDOWN CARS","-12.00","IMPACT","4121","Client Transport","11/04/2018"
"Wolverhampton City Council","http://opendatacommunities.org/id/metropolitan-district-council/wolverhampton","BOUNCEPAD","-285.12","City Direct","5969","Equipment - Purchase","11/04/2018"
"Wolverhampton City Council","http://opendatacommunities.org/id/metropolitan-district-council/wolverhampton","CARTRIDGE SAVE","112.58","City Direct","5111","Stationery","11/04/2018"
"Wolverhampton City Council","http://opendatacommunities.org/id/metropolitan-district-council/wolverhampton","WWW.PRINTERBASE.CO.UK","347.37","City Direct","5999","Equipment - Purchase","11/04/2018"
"Wolverhampton City Council","http://opendatacommunities.org/id/metropolitan-district-council/wolverhampton","BOUNCEPAD","390.00","City Direct","5943","Stationery","11/04/2018"
"Wolverhampton City Council","http://opendatacommunities.org/id/metropolitan-district-council/wolverhampton","BOUNCEPAD","285.12","City Direct","5732","Equipment - Purchase","11/04/2018"
"Wolverhampton City Council","http://opendatacommunities.org/id/metropolitan-district-council/wolverhampton","B&M RETAIL LTD","12.49","LAC Transitions Team","5310","Independant Living Allowance","10/04/2018"
"Wolverhampton City Council","http://opendatacommunities.org/id/metropolitan-district-council/wolverhampton","MARK BUTLER GOLF ACADE","80.00","Youth Offending Team","8999","Services - Professional Fees","10/04/2018"
"Wolverhampton City Council","http://opendatacommunities.org/id/metropolitan-district-council/wolverhampton","Virgin Trains","54.00","EIP Locality 8","4112","Public Transport","10/04/2018"
"Wolverhampton City Council","http://opendatacommunities.org/id/metropolitan-district-council/wolverhampton","PAYPAL  BARNARDOS","50.00","EIP Locality 2","8999","Training Expenses","10/04/2018"
"Wolverhampton City Council","http://opendatacommunities.org/id/metropolitan-district-council/wolverhampton","FUEL CARD SERVICES LTD","310.76","Towers Outdoor Education Centre","7399","Petrol","10/04/2018"
"Wolverhampton City Council","http://opendatacommunities.org/id/metropolitan-district-council/wolverhampton","HARLECH FOODSERVICE LT","61.95","Towers Outdoor Education Centre","5422","Provisions (Not for resale)","10/04/2018"
"Wolverhampton City Council","http://opendatacommunities.org/id/metropolitan-district-council/wolverhampton","CHEMSOL CYMRU LTD","108.00","Towers Outdoor Education Centre","5199","Fixtures and Fittings - Purchases","10/04/2018"
"Wolverhampton City Council","http://opendatacommunities.org/id/metropolitan-district-council/wolverhampton","HN NUTTALL LTD","191.93","Towers Outdoor Education Centre","5085","Provisions (Not for resale)","10/04/2018"
"Wolverhampton City Council","http://opendatacommunities.org/id/metropolitan-district-council/wolverhampton","C L JONES HEAD OFFICE","330.55","Towers Outdoor Education Centre","5211","Materials","10/04/2018"
"Wolverhampton City Council","http://opendatacommunities.org/id/metropolitan-district-council/wolverhampton","CORAM ACADEMY LTD","72.25","Fostering Team & Allowances","8398","Services - Supplies & Services to users","10/04/2018"
"Wolverhampton City Council","http://opendatacommunities.org/id/metropolitan-district-council/wolverhampton","PRODUCT SUPPORT AG","6.66","Headstart - Young People Engagement","5968","Computing - Maint Agreements","10/04/2018"
"Wolverhampton City Council","http://opendatacommunities.org/id/metropolitan-district-council/wolverhampton","PRODUCT SUPPORT AG","6.66","Headstart - Young People Engagement","5968","Computing - Maint Agreements","10/04/2018"
"Wolverhampton City Council","http://opendatacommunities.org/id/metropolitan-district-council/wolverhampton","Amazon EU","19.70","Licensing - General","5969","Equipment - Purchase","10/04/2018"
"Wolverhampton City Council","http://opendatacommunities.org/id/metropolitan-district-council/wolverhampton","BLACK COUNTRY CHAMBER","41.67","Education Business Partnership","7399","Equipment - Purchase","10/04/2018"
"Wolverhampton City Council","http://opendatacommunities.org/id/metropolitan-district-council/wolverhampton","BLACK COUNTRY CHAMBER","208.33","Education Business Partnership","7399","Equipment - Purchase","10/04/2018"
"Wolverhampton City Council","http://opendatacommunities.org/id/metropolitan-district-council/wolverhampton","WM MORRISONS","22.08","EIP Locality 6","5411","Grant Payments","10/04/2018"
"Wolverhampton City Council","http://opendatacommunities.org/id/metropolitan-district-council/wolverhampton","Virgin Trains","52.70","Service Director City Economy","4112","Public Transport","10/04/2018"
"Wolverhampton City Council","http://opendatacommunities.org/id/metropolitan-district-council/wolverhampton","Virgin Trains","94.90","LAC Team","4112","Public Transport","10/04/2018"
"Wolverhampton City Council","http://opendatacommunities.org/id/metropolitan-district-council/wolverhampton","Amazon UK Marketplace","10.53","EIP Locality 1","5942","Books","10/04/2018"
"Wolverhampton City Council","http://opendatacommunities.org/id/metropolitan-district-council/wolverhampton","CARVER/WOLVERHAMPTON/L","10.38","Culwell Street Depot","5211","R&M - Departmental planned (external)","10/04/2018"
"Wolverhampton City Council","http://opendatacommunities.org/id/metropolitan-district-council/wolverhampton","ASDA GROCERIES ONLINE","61.73","Ernest Bold Court","5411","Provisions (Not for resale)","10/04/2018"
"Wolverhampton City Council","http://opendatacommunities.org/id/metropolitan-district-council/wolverhampton","VIRGIN MEDIS PYMTS","105.85","Community Enablement","4814","Comms - Telephone Call charges","10/04/2018"
"Wolverhampton City Council","http://opendatacommunities.org/id/metropolitan-district-council/wolverhampton","Amazon UK Marketplace","18.23","Legal Services","5942","Stationery","10/04/2018"
"Wolverhampton City Council","http://opendatacommunities.org/id/metropolitan-district-council/wolverhampton","Trainline","85.40","Legal Services","4112","Public Transport","10/04/2018"
"Wolverhampton City Council","http://opendatacommunities.org/id/metropolitan-district-council/wolverhampton","Amazon UK Marketplace","23.32","Parks - Ranger Service","5942","Equipment - Purchase","10/04/2018"
"Wolverhampton City Council","http://opendatacommunities.org/id/metropolitan-district-council/wolverhampton","Amazon EU","17.04","Language Studies Delivery Area","5969","Books","09/04/2018"
"Wolverhampton City Council","http://opendatacommunities.org/id/metropolitan-district-council/wolverhampton","Amazon UK Marketplace","27.26","Creative Studies Delivery Area","5942","Equipment - Purchase","09/04/2018"
"Wolverhampton City Council","http://opendatacommunities.org/id/metropolitan-district-council/wolverhampton","Amazon EU","8.44","Language Studies Delivery Area","5969","Books","09/04/2018"
"Wolverhampton City Council","http://opendatacommunities.org/id/metropolitan-district-council/wolverhampton","Amazon EU","17.04","Language Studies Delivery Area","5969","Books","09/04/2018"
"Wolverhampton City Council","http://opendatacommunities.org/id/metropolitan-district-council/wolverhampton","PAYPAL  CORBETTMATH","56.43","Foundation Studies","8244","Books","09/04/2018"
"Wolverhampton City Council","http://opendatacommunities.org/id/metropolitan-district-council/wolverhampton","Amazon UK Marketplace","3.93","Language Studies Delivery Area","5942","Books","09/04/2018"
"Wolverhampton City Council","http://opendatacommunities.org/id/metropolitan-district-council/wolverhampton","Amazon UK Marketplace","17.90","Service Wide","5942","Equipment - Purchase","09/04/2018"
"Wolverhampton City Council","http://opendatacommunities.org/id/metropolitan-district-council/wolverhampton","Amazon UK Marketplace","349.00","Foundation Studies","5942","Equipment - Purchase","09/04/2018"
"Wolverhampton City Council","http://opendatacommunities.org/id/metropolitan-district-council/wolverhampton","Amazon UK Marketplace","125.00","Foundation Studies","5942","Equipment - Purchase","09/04/2018"
"Wolverhampton City Council","http://opendatacommunities.org/id/metropolitan-district-council/wolverhampton","B&M RETAIL","62.48","LAC Transitions Team","5310","Client Allowances","09/04/2018"
"Wolverhampton City Council","http://opendatacommunities.org/id/metropolitan-district-council/wolverhampton","HOME BARGAINS WOLVERHA","16.21","LAC Transitions Team","5251","Client Allowances","09/04/2018"
"Wolverhampton City Council","http://opendatacommunities.org/id/metropolitan-district-council/wolverhampton","HOME BARGAINS WOLVERHA","34.97","LAC Transitions Team","5251","Client Allowances","09/04/2018"
"Wolverhampton City Council","http://opendatacommunities.org/id/metropolitan-district-council/wolverhampton","Perton Golf Club Pro S","18.00","Youth Offending Team","7997","Educ Trips, Holidays, Outings, Activity","09/04/2018"
"Wolverhampton City Council","http://opendatacommunities.org/id/metropolitan-district-council/wolverhampton","Amazon EU","58.32","EIP Locality 2","5969","Equipment - Purchase","09/04/2018"
"Wolverhampton City Council","http://opendatacommunities.org/id/metropolitan-district-council/wolverhampton","Trainline","76.70","GEN Y City Transnational","4112","Public Transport","09/04/2018"
"Wolverhampton City Council","http://opendatacommunities.org/id/metropolitan-district-council/wolverhampton","THE POST OFFICE","31.50","IMPACT","9402","Comms - Postage","09/04/2018"
"Wolverhampton City Council","http://opendatacommunities.org/id/metropolitan-district-council/wolverhampton","THE POST OFFICE","10.95","AES Staff Development","9402","Comms - Postage","09/04/2018"
"Wolverhampton City Council","http://opendatacommunities.org/id/metropolitan-district-council/wolverhampton","WAITROSE 696","2.60","Mayoral Expenses","5411","Hospitality","09/04/2018"
"Wolverhampton City Council","http://opendatacommunities.org/id/metropolitan-district-council/wolverhampton","NAMESCO","24.98","City Direct","4816","Computing - Purchase of Software","09/04/2018"
"Wolverhampton City Council","http://opendatacommunities.org/id/metropolitan-district-council/wolverhampton","ASDA  STORES 5011","270.18","LAC Transitions Team","5411","Client Allowances","09/04/2018"
"Wolverhampton City Council","http://opendatacommunities.org/id/metropolitan-district-council/wolverhampton","ARGOS LTD","26.98","LAC Transitions Team","5310","Client Allowances","09/04/2018"
"Wolverhampton City Council","http://opendatacommunities.org/id/metropolitan-district-council/wolverhampton","POUNDSTRETCHER 557","9.99","LAC Transitions Team","5714","Client Allowances","09/04/2018"
"Wolverhampton City Council","http://opendatacommunities.org/id/metropolitan-district-council/wolverhampton","Amazon EU","75.57","Families In Focus","5969","Equipment - Purchase","09/04/2018"
"Wolverhampton City Council","http://opendatacommunities.org/id/metropolitan-district-council/wolverhampton","Amazon EU","15.14","Strategic ICTS (ICT Serv Budget)","5969","Equipment - Purchase","09/04/2018"
"Wolverhampton City Council","http://opendatacommunities.org/id/metropolitan-district-council/wolverhampton","Amazon EU","96.66","Foundation Studies","5969","Equipment - Purchase","09/04/2018"
"Wolverhampton City Council","http://opendatacommunities.org/id/metropolitan-district-council/wolverhampton","Amazon EU","40.54","Language Studies Delivery Area","5969","Books","09/04/2018"
"Wolverhampton City Council","http://opendatacommunities.org/id/metropolitan-district-council/wolverhampton","Amazon Digital Dwnlds","-0.99","Central Training","5735","Books","09/04/2018"
"Wolverhampton City Council","http://opendatacommunities.org/id/metropolitan-district-council/wolverhampton","Amazon Digital Dwnlds","-0.99","Central Training","5735","Books","09/04/2018"
"Wolverhampton City Council","http://opendatacommunities.org/id/metropolitan-district-council/wolverhampton","LEIC CITY COUNCIL","125.00","Central Training","9399","Training Expenses","09/04/2018"
"Wolverhampton City Council","http://opendatacommunities.org/id/metropolitan-district-council/wolverhampton","EBUYER (UK) LTD","20.40","Inclusion Support","5722","Equipment - Purchase","09/04/2018"
"Wolverhampton City Council","http://opendatacommunities.org/id/metropolitan-district-council/wolverhampton","Amazon UK Marketplace","11.98","Management & Administration","5942","Materials","09/04/2018"
"Wolverhampton City Council","http://opendatacommunities.org/id/metropolitan-district-council/wolverhampton","Amazon UK Marketplace","29.99","Creative Studies Delivery Area","5942","Equipment - Purchase","09/04/2018"
"Wolverhampton City Council","http://opendatacommunities.org/id/metropolitan-district-council/wolverhampton","Amazon UK Marketplace","63.79","Service Wide","5942","Equipment - Purchase","09/04/2018"
"Wolverhampton City Council","http://opendatacommunities.org/id/metropolitan-district-council/wolverhampton","Amazon UK Marketplace","26.99","Foundation Studies","5942","Equipment - Purchase","09/04/2018"
"Wolverhampton City Council","http://opendatacommunities.org/id/metropolitan-district-council/wolverhampton","THE QUEEN VICTORIA HOT","264.00","MASH","7011","No Recourse to Public Funds","09/04/2018"
"Wolverhampton City Council","http://opendatacommunities.org/id/metropolitan-district-council/wolverhampton","YOUNG`S SHOE REPAIRS L","42.15","Wolverhampton Indoor and Open Market","7251","Fixtures and Fittings - R&M","09/04/2018"
"Wolverhampton City Council","http://opendatacommunities.org/id/metropolitan-district-council/wolverhampton","ARGOS RETAIL GROUP","70.98","EIP Locality 1","5310","Equipment - Purchase","09/04/2018"
"Wolverhampton City Council","http://opendatacommunities.org/id/metropolitan-district-council/wolverhampton","HEATHCOTE PRINT","73.33","Education And Access","7338","Printing","09/04/2018"
"Wolverhampton City Council","http://opendatacommunities.org/id/metropolitan-district-council/wolverhampton","ASDA GROCERIES ONLINE","-3.35","Ernest Bold Court","5411","Provisions (Not for resale)","09/04/2018"
"Wolverhampton City Council","http://opendatacommunities.org/id/metropolitan-district-council/wolverhampton","ASDA GROCERIES ONLINE","0.73","Ernest Bold Court","5411","Provisions (Not for resale)","09/04/2018"
"Wolverhampton City Council","http://opendatacommunities.org/id/metropolitan-district-council/wolverhampton","CARVER/WOLVERHAMPTON/L","41.70","Direct Schools","5211","Materials","09/04/2018"
"Wolverhampton City Council","http://opendatacommunities.org/id/metropolitan-district-council/wolverhampton","Amazon UK Marketplace","21.89","Parks - Management and Admin","5942","Books","09/04/2018"
"Wolverhampton City Council","http://opendatacommunities.org/id/metropolitan-district-council/wolverhampton","ASDA GROCERIES ONLINE","82.08","Ernest Bold Court","5411","Provisions (Not for resale)","09/04/2018"
"Wolverhampton City Council","http://opendatacommunities.org/id/metropolitan-district-council/wolverhampton","THE RANGE","9.96","Civic Centre Catering","5311","Equipment - Purchase","09/04/2018"
"Wolverhampton City Council","http://opendatacommunities.org/id/metropolitan-district-council/wolverhampton","Amazon Digital Dwnlds","-0.99","Central Training","5735","Books","09/04/2018"
"Wolverhampton City Council","http://opendatacommunities.org/id/metropolitan-district-council/wolverhampton","GRO HM PASSPORT OFFICE","-7.71","LAC Transitions Team","9399","Client Allowances","09/04/2018"
"Wolverhampton City Council","http://opendatacommunities.org/id/metropolitan-district-council/wolverhampton","PREMIER INN","79.16","Inclusion Support","3811","Services - Supplies & Services to users","06/04/2018"
"Wolverhampton City Council","http://opendatacommunities.org/id/metropolitan-district-council/wolverhampton","STHSTAFFS D/C' NCL","116.00","Parks - Ranger Service","7997","Services - Fees and Charges","06/04/2018"
"Wolverhampton City Council","http://opendatacommunities.org/id/metropolitan-district-council/wolverhampton","000002200500000","240.00","Childrens with Disabilities Team","6011","No Recourse to Public Funds","06/04/2018"
"Wolverhampton City Council","http://opendatacommunities.org/id/metropolitan-district-council/wolverhampton","PIZZA HUT 371","8.20","LAC Transitions Team","5812","Client Allowances","06/04/2018"
"Wolverhampton City Council","http://opendatacommunities.org/id/metropolitan-district-council/wolverhampton","Amazon EU","119.85","EIP Locality 7","5969","Equipment - Purchase","06/04/2018"
"Wolverhampton City Council","http://opendatacommunities.org/id/metropolitan-district-council/wolverhampton","Amazon UK Marketplace","2.03","EIP Locality 7","5942","Equipment - Purchase","06/04/2018"
"Wolverhampton City Council","http://opendatacommunities.org/id/metropolitan-district-council/wolverhampton","Amazon UK Marketplace","13.93","EIP Locality 7","5942","Equipment - Purchase","06/04/2018"
"Wolverhampton City Council","http://opendatacommunities.org/id/metropolitan-district-council/wolverhampton","Amazon EU","136.47","Licensing - General","5969","Equipment - Purchase","06/04/2018"
"Wolverhampton City Council","http://opendatacommunities.org/id/metropolitan-district-council/wolverhampton","Amazon UK Marketplace","9.13","Strategic ICTS (ICT Serv Budget)","5942","Equipment - Purchase","06/04/2018"
"Wolverhampton City Council","http://opendatacommunities.org/id/metropolitan-district-council/wolverhampton","LIDDELL ELECTRICAL DIS","24.74","Caretakers Community Centre","5065","Equipment - R & M","06/04/2018"
"Wolverhampton City Council","http://opendatacommunities.org/id/metropolitan-district-council/wolverhampton","COOPERATIVE HEALTH","10.48","Intensive Family Support Team","5912","Toilet Requisites","06/04/2018"
"Wolverhampton City Council","http://opendatacommunities.org/id/metropolitan-district-council/wolverhampton","SPORTSDIRECT.COM","-36.97","Upper Pendeford Farm Childrens Home","5941","Equipment - Purchase","06/04/2018"
"Wolverhampton City Council","http://opendatacommunities.org/id/metropolitan-district-council/wolverhampton","BRITANNIA","32.00","MASH","7011","No Recourse to Public Funds","06/04/2018"
"Wolverhampton City Council","http://opendatacommunities.org/id/metropolitan-district-council/wolverhampton","POST OFFICE COUNTER","8.04","Private Sector Housing","9402","Comms - Postage","06/04/2018"
"Wolverhampton City Council","http://opendatacommunities.org/id/metropolitan-district-council/wolverhampton","MIDLANDS HOMES LTD","200.00","EIP Locality 1","1711","Grant Payments","06/04/2018"
"Wolverhampton City Council","http://opendatacommunities.org/id/metropolitan-district-council/wolverhampton","Trainline","159.00","Delivery & OCE Development","4112","Public Transport","06/04/2018"
"Wolverhampton City Council","http://opendatacommunities.org/id/metropolitan-district-council/wolverhampton","SPORTSDIRECT.COM","16.98","Aldersley Leisure Village","5941","Equipment - Purchase","06/04/2018"
"Wolverhampton City Council","http://opendatacommunities.org/id/metropolitan-district-council/wolverhampton","WWW.TONERGIANT.CO.UK","86.99","Headstart Hubs","5943","Stationery","06/04/2018"
"Wolverhampton City Council","http://opendatacommunities.org/id/metropolitan-district-council/wolverhampton","TESCO STORES 5397","2.80","EIP Locality 1","5411","Cleaning Supplies and Materials","06/04/2018"
"Wolverhampton City Council","http://opendatacommunities.org/id/metropolitan-district-council/wolverhampton","IANSYST LTD","167.35","EIP Locality 1","7372","Computing - Purchase of Software","06/04/2018"
"Wolverhampton City Council","http://opendatacommunities.org/id/metropolitan-district-council/wolverhampton","Amazon UK Marketplace","49.63","Carers Support","5942","Equipment - Purchase","06/04/2018"
"Wolverhampton City Council","http://opendatacommunities.org/id/metropolitan-district-council/wolverhampton","CO-OPERATIVE TRAVE","4360.37","Leonardo Da Vinci Project","6051","Subsistence","06/04/2018"
"Wolverhampton City Council","http://opendatacommunities.org/id/metropolitan-district-council/wolverhampton","PREMIER INN","313.31","Workforce Development","3811","Accommodation Costs","06/04/2018"
"Wolverhampton City Council","http://opendatacommunities.org/id/metropolitan-district-council/wolverhampton","THE POST OFFICE","6.50","IMPACT","9402","Comms - Postage","06/04/2018"
"Wolverhampton City Council","http://opendatacommunities.org/id/metropolitan-district-council/wolverhampton","WEST MID TRAVEL","436.90","IMPACT","4131","Public Transport","06/04/2018"
"Wolverhampton City Council","http://opendatacommunities.org/id/metropolitan-district-council/wolverhampton","AMZ Amazon.co.uk","-2.50","Admin & Support","5999","Stationery","06/04/2018"
"Wolverhampton City Council","http://opendatacommunities.org/id/metropolitan-district-council/wolverhampton","AMZ Kuuqa Direct","-2.50","Admin & Support","5999","Stationery","06/04/2018"
"Wolverhampton City Council","http://opendatacommunities.org/id/metropolitan-district-council/wolverhampton","Trainline","92.70","Admin & Support","4112","Public Transport","06/04/2018"
"Wolverhampton City Council","http://opendatacommunities.org/id/metropolitan-district-council/wolverhampton","Amazon UK Marketplace","9.58","City Direct","5942","Books","06/04/2018"
"Wolverhampton City Council","http://opendatacommunities.org/id/metropolitan-district-council/wolverhampton","LOYD 89 CHURCH STREET","190.00","EIP Locality 2","6011","Provisions (Not for resale)","06/04/2018"
"Wolverhampton City Council","http://opendatacommunities.org/id/metropolitan-district-council/wolverhampton","LOYD 89 CHURCH STREET","200.00","EIP Locality 2","6011","Provisions (Not for resale)","06/04/2018"
"Wolverhampton City Council","http://opendatacommunities.org/id/metropolitan-district-council/wolverhampton","Trainline","229.50","Early Years & Universal Service","4112","Public Transport","06/04/2018"
"Wolverhampton City Council","http://opendatacommunities.org/id/metropolitan-district-council/wolverhampton","000002200500000","250.00","CIN/CP Social Work Unit - Area 6","6011","Financial Assistance In Exceptional Circ","05/04/2018"
"Wolverhampton City Council","http://opendatacommunities.org/id/metropolitan-district-council/wolverhampton","FACEBK RXMZ7E2B82","129.76","WV Active Marketing","7311","Marketing \ Non-staff advertising","05/04/2018"
"Wolverhampton City Council","http://opendatacommunities.org/id/metropolitan-district-council/wolverhampton","FACEBK NXMZ7E2B82","234.69","WV Active Marketing","7311","Marketing \ Non-staff advertising","05/04/2018"
"Wolverhampton City Council","http://opendatacommunities.org/id/metropolitan-district-council/wolverhampton","WWW.WMCA.CO.UK","90.85","IMPACT","9399","Services - Fees and Charges","05/04/2018"
"Wolverhampton City Council","http://opendatacommunities.org/id/metropolitan-district-council/wolverhampton","WWW.WMCA.CO.UK","71.00","IMPACT","9399","Services - Fees and Charges","05/04/2018"
"Wolverhampton City Council","http://opendatacommunities.org/id/metropolitan-district-council/wolverhampton","THE POST OFFICE","6.50","IMPACT","9402","Comms - Postage","05/04/2018"
"Wolverhampton City Council","http://opendatacommunities.org/id/metropolitan-district-council/wolverhampton","POST OFFICE COUNTER","6.50","Register Office","9402","Comms - Postage","05/04/2018"
"Wolverhampton City Council","http://opendatacommunities.org/id/metropolitan-district-council/wolverhampton","Amazon EU","13.79","Bert Williams Leisure Centre","5969","Equipment - Purchase","05/04/2018"
"Wolverhampton City Council","http://opendatacommunities.org/id/metropolitan-district-council/wolverhampton","EB  LEADING LEARNING F","75.00","Admin & Support","7399","Training Expenses","05/04/2018"
"Wolverhampton City Council","http://opendatacommunities.org/id/metropolitan-district-council/wolverhampton","Amazon UK Marketplace","10.54","Admin & Support","5942","Stationery","05/04/2018"
"Wolverhampton City Council","http://opendatacommunities.org/id/metropolitan-district-council/wolverhampton","HOTJAR","80.25","City Direct","5045","Computing - Purchase of Hardware","05/04/2018"
"Wolverhampton City Council","http://opendatacommunities.org/id/metropolitan-district-council/wolverhampton","BEATSABAR MUSIC PROJEC","60.00","Youth Offending Team","5733","Equipment - Purchase","05/04/2018"
"Wolverhampton City Council","http://opendatacommunities.org/id/metropolitan-district-council/wolverhampton","WM MORRISONS","11.35","CIN/CP Social Work Unit - Area 5","5411","No Recourse to Public Funds","05/04/2018"
"Wolverhampton City Council","http://opendatacommunities.org/id/metropolitan-district-council/wolverhampton","WM MORRISONS","11.35","CIN/CP Social Work Unit - Area 5","5411","No Recourse to Public Funds","05/04/2018"
"Wolverhampton City Council","http://opendatacommunities.org/id/metropolitan-district-council/wolverhampton","HAYYAN HEALTHCARE LTD","4.16","Adult Services - East","5912","First Aid Requisites","05/04/2018"
"Wolverhampton City Council","http://opendatacommunities.org/id/metropolitan-district-council/wolverhampton","HAYYAN HEALTHCARE LTD","14.15","Adult Services - East","5912","First Aid Requisites","05/04/2018"
"Wolverhampton City Council","http://opendatacommunities.org/id/metropolitan-district-council/wolverhampton","Trainline","183.50","Equalities","4112","Public Transport","05/04/2018"
"Wolverhampton City Council","http://opendatacommunities.org/id/metropolitan-district-council/wolverhampton","PREMIER INN","79.16","Quality Assurance & Policies","3811","Accommodation Costs","05/04/2018"
"Wolverhampton City Council","http://opendatacommunities.org/id/metropolitan-district-council/wolverhampton","Trainline","32.25","Childrens with Disabilities Team","4112","No Recourse to Public Funds","05/04/2018"
"Wolverhampton City Council","http://opendatacommunities.org/id/metropolitan-district-council/wolverhampton","ROYAL MAIL GROUP","3.00","Adoption and Residence Team & Allowances","9402","Comms - Postage","05/04/2018"
"Wolverhampton City Council","http://opendatacommunities.org/id/metropolitan-district-council/wolverhampton","Virgin Trains","86.60","Adoption and Residence Team & Allowances","4112","Public Transport","05/04/2018"
"Wolverhampton City Council","http://opendatacommunities.org/id/metropolitan-district-council/wolverhampton","WICKES","30.62","Public Conveniences","5211","Equipment - Purchase","05/04/2018"
"Wolverhampton City Council","http://opendatacommunities.org/id/metropolitan-district-council/wolverhampton","OCEANIC SAUNAS LIMITED","91.00","Central Baths","5996","Equipment - Purchase","05/04/2018"
"Wolverhampton City Council","http://opendatacommunities.org/id/metropolitan-district-council/wolverhampton","ASDA GROCERIES ONLINE","0.52","Upper Pendeford Farm Childrens Home","5411","Provisions (Not for resale)","05/04/2018"
"Wolverhampton City Council","http://opendatacommunities.org/id/metropolitan-district-council/wolverhampton","ASDA GROCERIES ONLINE","172.81","Upper Pendeford Farm Childrens Home","5411","Provisions (Not for resale)","05/04/2018"
"Wolverhampton City Council","http://opendatacommunities.org/id/metropolitan-district-council/wolverhampton","ALDI 78 772","42.55","Upper Pendeford Farm Childrens Home","5411","Provisions (Not for resale)","05/04/2018"
"Wolverhampton City Council","http://opendatacommunities.org/id/metropolitan-district-council/wolverhampton","HUGHES","154.00","LAC Transitions Team","5732","Client Allowances","05/04/2018"
"Wolverhampton City Council","http://opendatacommunities.org/id/metropolitan-district-council/wolverhampton","Trainline","14.15","Archives","4112","Public Transport","05/04/2018"
"Wolverhampton City Council","http://opendatacommunities.org/id/metropolitan-district-council/wolverhampton","ARGOS RETAIL GROUP","-31.98","EIP Locality 1","5310","Grant Payments","05/04/2018"
"Wolverhampton City Council","http://opendatacommunities.org/id/metropolitan-district-council/wolverhampton","ARGOS RETAIL GROUP","31.98","EIP Locality 1","5310","Grant Payments","05/04/2018"
"Wolverhampton City Council","http://opendatacommunities.org/id/metropolitan-district-council/wolverhampton","RIBA ENTERPRISES LTD","75.99","Head of Corporate Landlord","5942","Books","05/04/2018"
"Wolverhampton City Council","http://opendatacommunities.org/id/metropolitan-district-council/wolverhampton","Amazon EU","11.16","Education And Access","5969","Books","05/04/2018"
"Wolverhampton City Council","http://opendatacommunities.org/id/metropolitan-district-council/wolverhampton","Amazon EU","2.76","Education And Access","5969","Books","05/04/2018"
"Wolverhampton City Council","http://opendatacommunities.org/id/metropolitan-district-council/wolverhampton","POST OFFICE COUNTER","2.01","Head of Service - CINCP","9402","Comms - Postage","05/04/2018"
"Wolverhampton City Council","http://opendatacommunities.org/id/metropolitan-district-council/wolverhampton","AMZ OMG Sales","-122.94","Environmental Health - Pub Prot - Gen","5999","Equipment - Purchase","05/04/2018"
"Wolverhampton City Council","http://opendatacommunities.org/id/metropolitan-district-council/wolverhampton","WWW.ADASS.ORG.UK","200.00","Workforce Development","8398","Training Expenses","05/04/2018"
"Wolverhampton City Council","http://opendatacommunities.org/id/metropolitan-district-council/wolverhampton","ACM TRAINING","119.00","Workforce Development","8999","Training Expenses","05/04/2018"
"Wolverhampton City Council","http://opendatacommunities.org/id/metropolitan-district-council/wolverhampton","WM MORRISONS","11.19","CIN/CP Social Work Unit - Area 5","5411","No Recourse to Public Funds","05/04/2018"
"Wolverhampton City Council","http://opendatacommunities.org/id/metropolitan-district-council/wolverhampton","000002200500000","200.00","EIP Locality 1","6011","Grant Payments","04/04/2018"
"Wolverhampton City Council","http://opendatacommunities.org/id/metropolitan-district-council/wolverhampton","000002200500000","200.00","EIP Locality 1","6011","Grant Payments","04/04/2018"
"Wolverhampton City Council","http://opendatacommunities.org/id/metropolitan-district-council/wolverhampton","WWW.COINADRINK.CO.UK","43.43","Global Budgets","5811","Catering","04/04/2018"
"Wolverhampton City Council","http://opendatacommunities.org/id/metropolitan-district-council/wolverhampton","Trainline","15.80","Head of Service - CINCP","4112","Public Transport","04/04/2018"
"Wolverhampton City Council","http://opendatacommunities.org/id/metropolitan-district-council/wolverhampton","Trainline","106.50","Head of Service - CINCP","4112","Public Transport","04/04/2018"
"Wolverhampton City Council","http://opendatacommunities.org/id/metropolitan-district-council/wolverhampton","WALSALL COUNCIL","213.00","Statutory Services (10RM)","9399","Services - Fees and Charges","04/04/2018"
"Wolverhampton City Council","http://opendatacommunities.org/id/metropolitan-district-council/wolverhampton","NO 5 CHAMBERS LTD","120.00","Central Training","8111","Training Expenses","04/04/2018"
"Wolverhampton City Council","http://opendatacommunities.org/id/metropolitan-district-council/wolverhampton","WHITEPAPER.CO.UK","199.00","Central Training","5734","Training Expenses","04/04/2018"
"Wolverhampton City Council","http://opendatacommunities.org/id/metropolitan-district-council/wolverhampton","Amazon UK Marketplace","4.99","Parks - Ranger Service","5942","Equipment - Purchase","04/04/2018"
"Wolverhampton City Council","http://opendatacommunities.org/id/metropolitan-district-council/wolverhampton","Trainline","165.50","Quality Assurance & Policies","4112","Public Transport","04/04/2018"
"Wolverhampton City Council","http://opendatacommunities.org/id/metropolitan-district-council/wolverhampton","000002200500000","250.00","CIN/CP Social Work Unit - Area 6","6011","Financial Assistance In Exceptional Circ","04/04/2018"
"Wolverhampton City Council","http://opendatacommunities.org/id/metropolitan-district-council/wolverhampton","000002200500000","70.00","Mental Health Assessment & Care Mgmt","6011","Financial Assistance In Exceptional Circ","04/04/2018"
"Wolverhampton City Council","http://opendatacommunities.org/id/metropolitan-district-council/wolverhampton","SAINSBURYS PFS (1340)","1.67","Mayoral Expenses","5541","Vehicle Maintenance - Repairs","04/04/2018"
"Wolverhampton City Council","http://opendatacommunities.org/id/metropolitan-district-council/wolverhampton","WWW.ICO.GOV.UK","35.00","Admin & Support","9399","Services - Fees and Charges","04/04/2018"
"Wolverhampton City Council","http://opendatacommunities.org/id/metropolitan-district-council/wolverhampton","N SOFTWARE INC","-2907.38","Strategic ICTS (ICT Serv Budget)","5045","Computing - Purchase of Hardware","04/04/2018"
"Wolverhampton City Council","http://opendatacommunities.org/id/metropolitan-district-council/wolverhampton","H JENKINSON & COMP","87.67","Intensive Family Support Team","5111","Stationery","04/04/2018"
"Wolverhampton City Council","http://opendatacommunities.org/id/metropolitan-district-council/wolverhampton","NYCOMM LTD","183.54","Intensive Family Support Team","4812","Comms - Mobile Telephones","04/04/2018"
"Wolverhampton City Council","http://opendatacommunities.org/id/metropolitan-district-council/wolverhampton","ASDA GROCERIES ONLINE","-0.45","Ernest Bold Court","5411","Provisions (Not for resale)","03/04/2018"
"Wolverhampton City Council","http://opendatacommunities.org/id/metropolitan-district-council/wolverhampton","ASDA GROCERIES ONLINE","62.04","Ernest Bold Court","5411","Provisions (Not for resale)","03/04/2018"
"Wolverhampton City Council","http://opendatacommunities.org/id/metropolitan-district-council/wolverhampton","Amazon EU","10.79","Parks - Ranger Service","5969","Equipment - Purchase","03/04/2018"
"Wolverhampton City Council","http://opendatacommunities.org/id/metropolitan-district-council/wolverhampton","HOVER","14.68","Headstart Phase 3","7372","Computing - Purchase of Software","02/04/2018"
"Wolverhampton City Council","http://opendatacommunities.org/id/metropolitan-district-council/wolverhampton","FACEBK FY779E6C22","3.04","Admin & Support","7311","Marketing \ Non-staff advertising","02/04/2018"
"Wolverhampton City Council","http://opendatacommunities.org/id/metropolitan-district-council/wolverhampton","FACEBK EY779E6C22","146.96","Admin & Support","7311","Marketing \ Non-staff advertising","02/04/2018"
"Wolverhampton City Council","http://opendatacommunities.org/id/metropolitan-district-council/wolverhampton","Amazon UK Marketplace","6.60","Admin & Support","5942","Stationery","02/04/2018"
"Wolverhampton City Council","http://opendatacommunities.org/id/metropolitan-district-council/wolverhampton","Amazon UK Marketplace","9.98","Admin & Support","5942","Stationery","02/04/2018"
"Wolverhampton City Council","http://opendatacommunities.org/id/metropolitan-district-council/wolverhampton","TVLICENSING.CO.UK","147.00","LAC Transitions Team","7392","Client Allowances","02/04/2018"
"Wolverhampton City Council","http://opendatacommunities.org/id/metropolitan-district-council/wolverhampton","EBUYER (UK) LTD","195.75","Civic Centre","5722","Equipment - Purchase","02/04/2018"
"Wolverhampton City Council","http://opendatacommunities.org/id/metropolitan-district-council/wolverhampton","ASDA GROCERIES ONLINE","79.55","Ernest Bold Court","5411","Provisions (Not for resale)","02/04/2018"
"Wolverhampton City Council","http://opendatacommunities.org/id/metropolitan-district-council/wolverhampton","ARGOS WOLVERHAMPTO","6.66","Duke Street Bungalows","5310","Equipment - Purchase","02/04/2018"
"Wolverhampton City Council","http://opendatacommunities.org/id/metropolitan-district-council/wolverhampton","THE NEW BRIDGE GUEST H","200.00","Emergency Duty Team","7011","Services - Supplies & Services to users","02/04/2018"
"Wolverhampton City Council","http://opendatacommunities.org/id/metropolitan-district-council/wolverhampton","GOOGLE  SVCSAPPS_wolve","9.90","Civic Halls Non Direct Management A/C","5968","Subscriptions","02/04/2018"
"Wolverhampton City Council","http://opendatacommunities.org/id/metropolitan-district-council/wolverhampton","FACEBK CL6LNFNAR2","64.83","Communications & Marketing - General","7311","Marketing \ Non-staff advertising","02/04/2018"
